Cogmind - Beta 15 @@@ ROGUE MODE // 2025.08.10 @ 18:03:36 Player: Cog on my mind Result: Destroyed by Superfortress with Concept Helical Railcannon Performance ------------- Evolutions (8) 4000 Regions Visited (22) 4400 Robots Destroyed (349) 1745 Value Destroyed (17275) 17275 Prototype IDs (179) 3580 Alien Tech Used (4) 800 Bonus (13707) 13707 TOTAL SCORE: 45507 Bonus ------- High Alert Combat Kills 4273 Follower Combat Kills 4020 Network Hubs Disabled 800 Registered with UFD 300 Met Optimus in HQ 500 Built Enhanced Grunts 300 A7 Reached Mainframe 300 Met R17 at Cetus 500 Met R17 at Research 2000 Met Optimus at Protoforge 1000 Friendly Fire -286 Cogmind --------- Core Integrity 0/1450 Matter 297/300 Energy 822/880 System Corruption 17% Temperature Cool (0) Movement Core (1450) Ox28 Location -2/Protoforge Parts ------- > --- POWER (2) -------- Light Quantum Reactor Light Quantum Reactor > --- PROPULSION (8) --- Combat Linear Gravjet Experimental Antigrav System Experimental Antigrav System Gravjet Array Gravjet Array Concept Gyrokinetic System (fused) > --- UTILITY (10) ----- Experimental Energy Well Experimental Core Analyzer Experimental Reaction Control System Experimental Weapon Shielding SHELL Armor AEGIS Remote Shield Concept Navigation Harness > --- WEAPON (3) ------- Plasma Lance > --- INVENTORY (5) ---- Experimental Energy Well (187) Experimental Energy Well (0) Supercharged TR Improved Potential Cannon Peak State ------------ > --- POWER ------------ Compact Particle Reactor Improved Quantum Reactor > --- PROPULSION ------- Heavy Shield Leg Heavy Shield Leg Experimental VSS Leg Experimental VSS Leg Experimental VSS Leg Experimental VSS Leg > --- UTILITY ---------- Experimental Heat Sink Large Storage Unit Experimental Energy Well Experimental Optical Array Experimental Core Analyzer Experimental Reaction Control System SHELL Armor AEGIS Remote Shield > --- WEAPON ----------- Concept XC Strikerail Concept XC Strikerail Concept XC Strikerail > --- INVENTORY -------- Advanced Power Amplifier Advanced Cryofiber Web Experimental Energy Well Experimental Energy Well Matter Compressor Plexus Tether Experimental Propulsion Shielding Experimental Weapon Shielding High-powered Transdimensional Reconstructor Supercharged TR Improved Potential Cannon Improved Potential Cannon Hellfire Missile Launcher [Rating: 233] Favorites ----------- Power Subdweller Power Source Engine Subdweller Power Source Power Core Enhanced Fission Core Reactor Compact Particle Reactor Propulsion Light Treads Treads Light Treads Leg Experimental VSS Leg Wheel Armored Huge Wheel Hover Unit Gravmag System Flight Unit Field Propulsion Array Utility Large Storage Unit Device Seismic Detector Storage Large Storage Unit Processor Advanced Signal Interpreter Hackware Improved Hacking Suite Protection SHELL Armor Weapon Subdweller Machine Gun Energy Gun Heavy Quantum Rifle Energy Cannon Subdweller Beam Cannon Ballistic Gun Subdweller Machine Gun Ballistic Cannon Omega Cannon Launcher Hellfire Missile Launcher Special Weapon Junk Cannon Impact Weapon Power Maul Slashing Weapon Power Sword Piercing Weapon Heavy Pick Special Melee Weapon Improved Datajack Build | -11 -10 -10 -9 -9 -6 -6 -6 -6 -6 -6 -6 -5 -5 -5 -4 -4 -4 -3 -3 -2 -2 -2 ------- Run | Yrd Mat Sub Rec Scr Fac Was Fac Ext Cet Arc Hub Fac Was Fac Fac Was Fac Res Tes Res Qua Frg Slots Evolved 16 | . . . . . 8 . . . . . . 2 . . 2 . . 2 . 2 . . Power 1 | . . . . . . . . . . . . 1 . . . . . . . . . . Propulsion 6 | . . . . . 4 . . . . . . 1 . . 1 . . . . . . . Utility 8 | . . . . . 4 . . . . . . . . . 1 . . 1 . 2 . . Weapon 1 | . . . . . . . . . . . . . . . . . . 1 . . . . Parts Attached 382 | 8 3 16 1 9 40 4 22 7 4 7 3 23 1 27 20 12 29 35 32 22 11 46 Power 33 | 1 . 2 . 1 2 1 1 2 . . . 2 1 1 2 2 4 1 3 1 . 6 Engine 8 | 1 . 2 . 1 1 . . 2 . . . . . . 1 . . . . . . . Core 8 | . . . . . 1 . . . . . . 2 . 1 . . 3 1 . . . . Reactor 17 | . . . . . . 1 1 . . . . . 1 . 1 2 1 . 3 1 . 6 Propulsion 142 | 3 . 3 1 3 14 . 8 1 . 4 1 12 . 9 7 3 9 14 12 11 4 23 Treads 10 | 2 . 3 1 . 4 . . . . . . . . . . . . . . . . . Leg 18 | . . . . . . . . . . . . . . . 1 . . . 2 4 . 11 Wheel 11 | 1 . . . 3 . . . . . . . 6 . . 1 . . . . . . . Hover 82 | . . . . . 10 . 7 1 . 4 1 4 . 8 4 3 8 5 7 6 4 10 Flight 21 | . . . . . . . 1 . . . . 2 . 1 1 . 1 9 3 1 . 2 Utility 138 | 2 3 2 . 3 16 3 7 1 2 2 2 6 . 13 7 5 13 16 10 8 6 11 Device 80 | 1 . 1 . 2 10 2 3 1 . 2 . 4 . 6 6 3 7 9 5 7 5 6 Storage 11 | 1 2 . . 1 . . 1 . . . . . . 1 . . 1 1 3 . . . Processor 17 | . . . . . 2 . 2 . . . . 1 . 4 . . 1 3 . . 1 3 Hackware 10 | . . . . . 2 . . . . . 2 1 . 2 . . 2 . 1 . . . Protection 20 | . 1 1 . . 2 1 1 . 2 . . . . . 1 2 2 3 1 1 . 2 Artifact . | . . . . . . . . . . . . . . . . . . . . . . . Weapon 69 | 2 . 9 . 2 8 . 6 3 2 1 . 3 . 4 4 2 3 4 7 2 1 6 Energy Gun 14 | . . 3 . . . . 1 . 1 . . . . 1 2 1 1 . 2 2 . . Energy Cannon 10 | . . 2 . . 5 . . . . . . . . . . . . . 3 . . . Ballistic Gun 13 | 2 . 2 . . . . . . 1 . . 1 . . 1 . . 2 . . . 4 Ballistic Cannon 2 | . . . . . . . 1 . . . . . . . . . . . 1 . . . Launcher 4 | . . . . . 1 . 2 . . . . . . . . . . . . . 1 . Special Weapon 2 | . . . . 1 . . . . . . . . . . 1 . . . . . . . Impact Weapon 4 | . . . . . . . . . . . . 1 . 2 . . . 1 . . . . Slashing Weapon 8 | . . 2 . 1 1 . . 2 . . . 1 . . . . 1 . . . . . Piercing Weapon 3 | . . . . . . . 1 . . . . . . . . . . . . . . 2 Special Melee Weapon 9 | . . . . . 1 . 1 1 . 1 . . . 1 . 1 1 1 1 . . . Unidentified Prototypes 55 | . . 1 . 1 9 . 10 1 3 . . 1 1 . . 3 2 1 12 1 4 5 Corrupted Parts 3 | . . . . . . . . . . . . . . . 1 . 2 . . . . . System Corruption 13 | . . . . . . . . . . . . . . . 9 . 4 . . . . . Parts Lost 129 | . . 2 . . 3 1 2 2 . . . 22 . 4 23 . 3 18 17 7 . 25 Power 11 | . . 2 . . . . . 1 . . . 1 . . 1 . . 2 1 . . 3 Propulsion 64 | . . . . . 1 1 2 . . . . 15 . 2 10 . 2 9 9 4 . 9 Utility 37 | . . . . . 2 . . 1 . . . 3 . . 7 . 1 4 6 3 . 10 Weapon 17 | . . . . . . . . . . . . 3 . 2 5 . . 3 1 . . 3 Highest Loss Streak 10 | . . 1 . . 1 1 1 2 . . . 9 . 4 10 . 1 5 7 3 . 5 To Critical Strikes 5 | . . . . . . . . . . . . . . . 1 . . . . . . 4 Average Backups 12 | . 10 14 14 17 14 14 14 14 14 14 14 14 4 4 4 5 8 14 11 9 12 11 Power . | . 1 . . . . 1 . . . . . . . . . . 1 1 . . . . Propulsion 1 | . 3 4 2 3 1 . . . 1 . . . . . . . 1 3 . . . . Utility 7 | . 3 5 7 7 8 10 10 11 10 11 11 10 3 4 3 4 4 7 7 5 8 7 Weapon 3 | . 2 4 5 5 3 3 2 2 3 3 2 2 1 . . . . 1 3 3 3 2 Tool/Special . | . . . . . . . . . . . . . . . . . . . . . . . Unused Backups 48 | . 3 6 2 6 7 . 4 2 . . . 1 1 . 1 1 . 1 8 . 1 4 Power 5 | . . 2 . . . . 2 . . . . . . . . . . . 1 . . . Propulsion 6 | . 3 . . . 2 . . 1 . . . . . . . . . . . . . . Utility 22 | . . . . 4 3 . 2 1 . . . 1 1 . 1 1 . 1 3 . 1 3 Weapon 13 | . . 4 2 1 2 . . . . . . . . . . . . . 4 . . . Tool/Special 2 | . . . . 1 . . . . . . . . . . . . . . . . . 1 Average Slot Usage (%) 86 | . 100 99 100 78 89 89 97 99 100 94 92 63 . 70 63 54 94 82 79 81 82 73 Engine 6 | . 14 13 14 13 3 . . 2 6 6 6 1 . . 3 5 1 . . . . . Core 1 | . . . . . 2 2 . . . . . 3 . 4 . . 5 6 . . . . Reactor 2 | . . . . . . 2 5 3 . . . . . 3 2 3 3 . 4 7 8 6 Treads 8 | . 28 28 28 . 12 . . . . . . . . . . . . . . . . . Leg 1 | . . . . . . . . . . . . . . . . . . . 2 9 . 12 Wheel 1 | . . . . 14 3 . . . . . . 1 . . . . . . . . . . Hover 15 | . . . . . 17 36 39 40 40 35 33 14 . 22 17 15 39 22 10 17 29 11 Flight 1 | . . . . . . . . . . . . 1 . 1 1 . . 8 17 . . . Device 12 | . 13 13 14 13 15 18 15 9 6 5 5 6 . 14 12 4 12 11 14 19 13 8 Storage 8 | . 14 14 14 13 6 6 6 6 6 6 6 4 . . . . 3 4 6 8 8 7 Processor 5 | . . . . . 5 6 8 13 13 13 13 10 . 6 9 . 4 9 8 4 6 9 Hackware 2 | . . . . . 7 6 6 6 6 6 13 7 . 5 4 . 3 4 2 2 . . Protection 1 | . . . . . . 1 1 2 6 6 . 1 . . . 14 9 3 1 2 4 4 Energy Gun 2 | . . 6 . . . . . . . . . . . 3 2 7 2 1 2 6 10 1 Energy Cannon 1 | . . . 14 7 . . . 1 . . 3 . . . . . . . . . . . Ballistic Gun 5 | . 28 14 14 7 . . . . . . . . . . . . . 2 . . . 5 Slashing Weapon 3 | . . 6 . 2 7 6 4 5 6 6 6 3 . 1 . . 3 2 . . . . Peak Build Rating 233 | 7 8 17 15 32 75 68 86 83 89 89 85 92 12 76 104 83 125 140 174 197 185 233 Average Rating 67 | 5 7 13 15 23 58 64 72 78 83 87 83 67 3 54 63 60 108 114 129 157 170 190 On Entrance 63 | . 7 8 15 15 25 64 63 85 79 84 88 78 3 3 76 2 75 110 114 132 162 178 Naked Turns 98 | . . . . . . . . . . . . 8 68 6 6 10 . . . . . . Heaviest Build 127 | 15 32 38 38 65 81 43 56 51 52 47 45 67 . 33 45 38 70 91 77 105 105 127 Greatest Support 228 | 40 40 40 40 40 60 52 71 63 61 59 60 76 3 60 86 46 104 108 65 172 96 228 Greatest Overweight (x) 15 | . . . . 3 2 . 1 . . 15 1 4 . . 1 . . 1 2 1 1 2 Average Overweight (x) . | . . . . 1 . . . . . 2 . . . . . . . . . . . . Largest Inventory Capacity 20 | 8 15 15 15 20 20 15 15 15 15 15 15 20 5 5 5 5 15 20 15 15 15 15 Average Capacity 14 | 7 13 15 15 19 17 15 15 15 15 15 15 15 5 5 5 5 11 17 15 15 15 14 Most Carried 20 | 1 15 15 15 20 20 15 15 15 15 15 15 16 5 5 5 5 12 17 15 15 15 15 Average Carried 13 | . 10 14 14 18 16 15 14 14 15 14 14 14 4 4 4 4 8 14 14 13 14 13 Final Capacity 20 | 8 15 15 15 20 15 15 15 15 15 15 15 5 5 5 5 5 15 15 15 15 15 5 Final Carried 20 | 1 15 14 15 20 15 15 15 15 15 15 15 5 5 5 5 5 12 15 15 14 15 5 Class Distribution -------------------- 31% | Mutant 17% | Commander-Mutant 13% | Scavenger-Mutant 12% | Scavenger-Scout 5% | Scout 3% | Hacker-Mutant Dominant Class ---------------- Mutant | -10/Materials Mutant | -10/Subcaves Mutant | -9/Recycling Commander-Mutant | -9/Scraptown Scavenger-Scout | -6/Factory Scavenger-Mutant | -6/Waste Scavenger-Scout | -6/Factory Commander-Mutant | -6/Extension Commander-Mutant | -6/Cetus Commander-Mutant | -6/Archives Hacker-Mutant | -6/Hub_04(d) Mutant | -5/Factory Mutant | -5/Waste Scout | -5/Factory Mutant | -4/Factory Mutant | -4/Waste Scavenger-Mutant | -4/Factory Scavenger-Sprinter | -3/Research Scavenger-Mutant | -3/Testing Scavenger-Mutant | -2/Research Scavenger-Scout | -2/Quarantine Scavenger-Gunner | -2/Protoforge Resources | -11 -10 -10 -9 -9 -6 -6 -6 -6 -6 -6 -6 -5 -5 -5 -4 -4 -4 -3 -3 -2 -2 -2 ----------- Run | Yrd Mat Sub Rec Scr Fac Was Fac Ext Cet Arc Hub Fac Was Fac Fac Was Fac Res Tes Res Qua Frg Matter Collected 11045 | 321 383 290 36 70 1062 25 1031 296 135 109 80 557 . 367 295 154 389 518 1093 275 200 3359 Remotely . | . . . . . . . . . . . . . . . . . . . . . . . Salvage Created 15923 | 131 249 509 151 . 1959 . 1083 540 . 139 89 1883 . 457 514 80 520 1317 1129 930 556 3687 Parts 752 | 10 19 38 10 . 94 . 51 33 . 11 8 72 . 25 10 . 17 68 44 49 42 151 Haulers Intercepted 18 | . 1 . . . 1 . 3 . . . . 3 . 1 1 . 3 3 1 . 1 . Recyclers Shooed 10 | 1 . . . . 1 . 1 . . . . 1 . . 1 . 1 . . 1 3 . Parts Field Recycled . | . . . . . . . . . . . . . . . . . . . . . . . Retrieved Matter . | . . . . . . . . . . . . . . . . . . . . . . . Parts Self-Destructed 17 | . . 17 . . . . . . . . . . . . . . . . . . . . Prevented . | . . . . . . . . . . . . . . . . . . . . . . . Kills | -11 -10 -10 -9 -9 -6 -6 -6 -6 -6 -6 -6 -5 -5 -5 -4 -4 -4 -3 -3 -2 -2 -2 ------- Run | Yrd Mat Sub Rec Scr Fac Was Fac Ext Cet Arc Hub Fac Was Fac Fac Was Fac Res Tes Res Qua Frg Combat Hostiles Destroyed 230 | . 6 12 3 . 25 . 9 9 . . 1 26 . 4 10 . 3 13 13 9 7 80 Melee 36 | . . . . . 11 . 1 4 . . . 8 . 1 4 . 1 6 . . . . Guns 75 | . 6 11 2 . . . . . . . . 1 . 1 . . 2 5 2 5 3 37 Cannons 17 | . . 1 1 . 4 . 2 . . . 1 . . . . . . . 7 1 . . AOE 81 | . . . . . 3 . 5 5 . . . 17 . 2 . . . . 2 . 4 43 Classes Destroyed 26 | 2 5 1 1 . 4 . . 2 . . 1 . . . . . 1 . 1 . . 8 Worker 13 | . 1 . . . 4 . 3 . . . . 2 . . . . . 2 1 . . . Builder 27 | . . . . . 4 . 2 2 . . . 2 . 6 . . 1 . 4 1 2 3 Tunneler 12 | 3 . . . . . . . . . . . . . 1 1 . 1 2 . 4 . . Hauler 18 | . 1 . . . 1 . 3 . . . . 3 . 1 1 . 3 3 1 . 1 . Recycler 13 | 1 . . . . 2 . 3 1 . . . 3 . . . . . . 2 . 1 . Carrier 1 | . . . . . . . . . . . . . . . . . . . . . . 1 Mechanic 6 | . . . . . 1 . . . . . . . . 1 . . . 1 . . . 3 Operator 15 | . . . . . 2 . 1 1 . 4 1 . . . . . . 1 2 1 1 1 Drone 8 | . . . . . . . . . . . . . . . . . . . . . . 8 Watcher 15 | . 1 . . . 4 . 2 . . . . 2 . 1 1 . . . . 1 . 3 Swarmer 46 | . 3 3 . . 3 . 5 5 . . . 5 . . 5 . . 4 . . 4 9 Saboteur 2 | . . . . . . . . . . . . . . . . . . . . . . 2 Grunt 62 | . 3 . 1 . 12 . 3 2 . . . 14 . 2 2 . 1 3 6 . . 13 Brawler 4 | . . . . . . . . . . . . . . . . . 1 . . . . 3 Duelist 2 | . . . . . . . . . . . . . . . . . . . . . . 2 Protector 2 | . . . . . . . . . . . . . . . . . . . . . . 2 Researcher 1 | . . . . . . . . . . . . . . . . . . . 1 . . . Sentry 10 | . . . 2 . 3 . . 1 . . . 1 . . . . . 1 . 2 . . Hunter 13 | . . . . . . . . 1 . . . . . . 1 . . 2 . 3 . 6 Programmer 45 | . . . . . 7 . 1 . . . . 6 . 2 2 . 1 3 7 5 3 8 Behemoth 1 | . . . . . . . . . . . 1 . . . . . . . . . . . Hotshot 2 | . . . . . . . . . . . . . . . . . . . . . . 2 Decapitator 7 | . . . . . . . . . . . . . . . . . . . . . . 7 Striker 7 | . . . . . . . . . . . . . . . . . . . . . . 7 Executioner 10 | . . . . . . . . . . . . . . . . . . . . . . 10 Alpha 7 1 | . . . . . . . . . . . . . . . . . . . . . . 1 Subdweller 9 | . . 9 . . . . . . . . . . . . . . . . . . . . Butcher 1 | . . . . . . . . 1 . . . . . . . . . . . . . . Best Kill Streak 15 | 2 4 2 1 . 8 . 4 5 . 3 1 7 . 4 5 . 2 5 4 7 8 15 Combat Bots Only 14 | . 3 2 1 . 4 . 3 5 . . 1 7 . 2 5 . 2 4 3 3 7 14 Max Kills in Single Turn 6 | 1 1 1 1 . 2 . 3 3 . 1 1 4 . 3 1 . 1 1 2 1 4 6 Gunslinging 1 | . . . . . . . . . . . . . . . . . . . . . . 1 Exploded 5 | . . . . . 2 . 2 3 . . . 4 . 2 . . . . 2 . 4 5 Melee 1 | . . . . . 1 . 1 1 . . . 1 . 1 1 . 1 1 . . . . Uniques/NPCs Destroyed . | . . . . . . . . . . . . . . . . . . . . . . . Combat | -11 -10 -10 -9 -9 -6 -6 -6 -6 -6 -6 -6 -5 -5 -5 -4 -4 -4 -3 -3 -2 -2 -2 -------- Run | Yrd Mat Sub Rec Scr Fac Was Fac Ext Cet Arc Hub Fac Was Fac Fac Was Fac Res Tes Res Qua Frg Hostile Shots Fired 2136 | . 29 58 6 . 135 . 52 70 2 . 44 210 . 28 269 . 27 314 115 148 36 593 Missed 758 | . 6 19 . . 52 . 25 32 1 . 19 65 . 10 95 . 8 141 35 58 15 177 Deflected 12 | . . . . . . . . . . . . . . . . . . . . . . 12 Hits 1378 | . 23 39 6 . 83 . 27 38 1 . 25 145 . 18 174 . 19 173 80 90 21 416 Melee 36 | . . . . . . . . . . . . . . . . . . . . . . 36 Projectile 1342 | . 23 39 6 . 83 . 27 38 1 . 25 145 . 18 174 . 19 173 80 90 21 380 AOE 8 | . . 1 . . . . . . . . 1 . . . 2 . 1 . . . . 3 Critical Strikes 78 | . . . . . 3 . 3 1 1 . . 9 . 1 6 . . 8 10 5 . 31 Actively Blocked 5 | . . . . . . . . . . . . . . . . . . 1 . 3 . 1 Part Disruptions 5 | . . . . . 1 . . . . . . . . . . . . 2 2 . . . Damage Taken 27950 | . 215 650 89 . 979 117 457 439 109 . 413 3018 . 360 3152 . 457 3796 2079 1975 509 9136 Core 4778 | . 44 130 29 . 108 . 49 42 25 . 32 886 . 64 1047 . 39 604 312 30 24 1313 Absorbed by Shields 4295 | . . . . . 54 . . 139 25 . . . . . . . . . . . . 4077 Redirected to Shielding 479 | . . . . . . . . . . . . . . . . . 103 103 . 158 . 115 Regen/Repaired (Parts) 4858 | . . . . . . 24 96 . . . . 61 . . 8 360 11 . . 538 692 3068 Core Remaining (%) 37 | 100 . . . 18 . . . . . . 69 . . 5 . . 5 . 29 . . . Volleys Fired 627 | 11 28 63 6 . 43 . 18 14 1 . 10 23 . 10 37 . 13 23 67 60 46 154 Largest 3 | 2 2 2 2 . 1 . 1 1 1 . 1 1 . 1 1 . 1 2 1 3 3 3 Hottest 268 | 40 40 120 110 . 90 . 46 105 105 . 105 46 . 225 88 . 88 88 200 268 268 200 Shots Fired 951 | 22 56 102 12 . 45 . 18 13 1 . 10 23 . 13 37 1 12 38 66 119 69 294 Gun 762 | 22 56 99 6 . . . . . . . . 14 . 13 33 1 12 38 42 100 68 258 Cannon 100 | . . 3 6 . 19 . 2 10 1 . 10 2 . . . . . . 24 19 . 4 Launcher 51 | . . . . . 3 . 5 3 . . . 7 . . . . . . . . 1 32 Special 38 | . . . . . 23 . 11 . . . . . . . 4 . . . . . . . Kinetic 420 | 22 56 49 6 . . . . . . . . 14 . . 12 . . 31 15 . . 215 Thermal 418 | . . 53 6 . 19 . 2 10 1 . 10 2 . 13 21 1 12 7 46 100 68 47 Explosive 51 | . . . . . 3 . 5 3 . . . 7 . . . . . . . . 1 32 Electromagnetic 24 | . . . . . . . . . . . . . . . . . . . 5 19 . . Impact 34 | . . . . . 23 . 11 . . . . . . . . . . . . . . . Robot Hit Streak 66 | 6 5 27 3 . 7 . 8 6 . . 2 8 . 4 4 3 8 8 9 5 6 66 Robot Miss Streak 6 | 1 5 3 1 . 2 . 1 1 . . 2 2 . 2 4 . 2 2 2 4 6 5 Penetration Max 2 | . . . . . . . . . . . . . . . . . . 1 . . . 2 Secondary Targets 17 | . . 1 . . . . . . . . . . . . . . . 1 . 1 1 13 Max Gunslinging Chain 1 | . . 1 . . . . . . . . . . . . . . . 1 . 1 1 1 Shots Hit Robots 911 | 16 31 74 9 . 76 . 45 48 5 9 4 51 . 22 57 1 29 66 53 59 19 237 Core Hits 483 | 4 11 25 3 . 37 . 18 20 1 2 3 71 . 7 7 1 8 26 19 23 19 178 Critical Kills 22 | . . 1 . . 1 . . . . . . 1 . . 1 . . 3 . 2 1 12 Critical Parts Destroyed 44 | . . . . . 4 . . . . . . 2 . . 9 . . 3 2 5 1 18 Critical Strikes 97 | . . 1 . . 11 . 5 3 1 . . 6 . . 10 . 1 12 6 8 2 31 Destroy 54 | . . 1 . . . . . . . . . 3 . . 1 . . 9 . 7 2 31 Blast 4 | . . . . . . . . . . . . . . . . . . . 4 . . . Corrupt 1 | . . . . . . . . . . . . . . . . . . . . 1 . . Smash 17 | . . . . . 5 . 1 . . . . . . . 9 . . . 2 . . . Sever 19 | . . . . . 6 . 2 3 1 . . 3 . . . . 1 3 . . . . Impale 2 | . . . . . . . 2 . . . . . . . . . . . . . . . Melee Attacks 567 | . . 25 . . 93 1 77 56 8 15 7 64 . 45 53 . 33 65 24 . . 1 Impact 120 | . . . . . . . . . . . . 11 . 17 53 . . 16 23 . . . Slashing 380 | . . 25 . . 92 1 47 29 4 13 7 53 . 27 . . 33 49 . . . . Piercing 31 | . . . . . . . 30 . . . . . . . . . . . . . . 1 Sneak Attacks 112 | . . . . . 15 . 13 34 3 7 . 11 . 8 3 . 6 10 2 . . . Combat Hostiles 10 | . . . . . 3 . . 4 . . . 1 . . . . . 2 . . . . Follow-up Attacks 11 | . . . . . 9 . 2 . . . . . . . . . . . . . . . Damage Inflicted 53636 | 171 414 1411 213 . 4937 . 3247 1832 105 686 200 5032 . 1710 2332 27 1399 3111 4485 2450 1216 18658 Guns 15151 | 171 414 1358 105 . . . . . . . . 92 . 60 391 27 233 947 1147 1817 820 7569 Cannons 3487 | . . 53 108 . 146 . . 167 . . 146 . . . . . . . 2150 483 . 234 Explosions 16762 | . . . . . 263 . 537 580 . . . 3031 . 346 . . . . 604 150 396 10855 Melee 15668 | . . . . . 2848 . 1873 1085 105 686 46 1909 . 1304 1941 . 1166 2121 584 . . . Ramming 51 | . . . . . . . . . . . 8 . . . . . . 43 . . . . Kinetic 10313 | 171 414 562 105 . . . . . . . . 92 . . 151 . . 777 1437 . . 6604 Thermal 9738 | . . 849 108 . 146 . . 167 . . 146 862 . 60 240 27 233 170 2223 1967 820 1720 Explosive 14272 | . . . . . 263 . 537 580 . . . 1816 . 346 . . . . . . 396 10334 Electromagnetic 1077 | . . . . . . . . . . . . 353 . . . . . . 241 483 . . Impact 6043 | . . . . . 1680 . 837 . . . . 281 . 200 1941 . . 520 584 . . . Slashing 11383 | . . . . . 2848 . 1114 1085 105 686 46 1628 . 1104 . . 1166 1601 . . . . Piercing 759 | . . . . . . . 759 . . . . . . . . . . . . . . . Highest Corruption 22 | . . . . . 8 14 14 9 9 9 2 7 15 19 12 12 20 9 22 5 5 17 Average Corruption 10 | . . . . . 5 13 11 9 9 5 1 6 13 14 3 12 17 8 13 3 3 11 Corruption Purged 24 | . . . . . . . 5 . . 9 . . . 5 . . . . . . 5 . Corruption Blocked . | . . . . . . . . . . . . . . . . . . . . . . . Effects 429 | . . . . . 33 5 58 29 12 3 2 12 3 50 12 18 34 26 35 10 6 81 Message Errors 110 | . . . . . 12 2 20 7 4 . 1 2 . 14 2 2 7 8 5 5 1 18 Matter Fused 84 | . . . . . 6 . 13 7 3 1 1 3 1 6 2 3 8 3 8 2 1 16 Heat Flow Errors 55 | . . . . . 2 2 10 7 1 1 . 1 . 7 1 3 2 6 5 1 1 5 Energy Discharges 46 | . . . . . 5 1 4 2 2 . . 3 . 5 . 1 5 1 6 2 . 9 Parts Rejected 13 | . . . . . . . . . . . . 2 . 1 . . 1 1 1 . . 7 Parts Fused 4 | . . . . . . . . . 1 . . . . 1 . . . . . . . 2 Data Loss (minor) 50 | . . . . . 5 . 8 4 . . . 1 . 5 2 7 5 3 2 . 2 6 Data Loss (major) 15 | . . . . . 1 . . . 1 1 . . . 1 3 . 2 2 2 . . 2 Misfires 10 | . . . . . 2 . . . . . . . . 3 1 1 . . 2 . 1 . Alerts 6 | . . . . . . . 1 1 . . . . . . . 1 1 1 . . . 1 Misdirections 24 | . . . . . . . 2 . . . . . 2 7 . . 2 . 1 . . 10 Weapon Failures 12 | . . . . . . . . 1 . . . . . . 1 . 1 1 3 . . 5 Overload Shots 11 | . . . . . . . . 5 1 . 2 . . 3 . . . . . . . . Overflow Damage 5245 | . . . . . 1044 . 540 264 . 234 . 462 . 579 826 . 102 238 677 . . 279 Projectiles 1190 | . . . . . 654 . 247 . . . . . . . . . . . 288 . . 1 Explosions 814 | . . . . . 3 . 72 67 . . . 189 . 68 . . . . 137 . . 278 Melee 3241 | . . . . . 387 . 221 197 . 234 . 273 . 511 826 . 102 238 252 . . . Knockbacks 34 | . . . . . 16 . 4 . . . . . . . 3 . . 1 10 . . . Impact 20 | . . . . . 11 . 3 . . . . . . . 3 . . 1 2 . . . Kinetic 7 | . . . . . . . . . . . . . . . . . . . 7 . . . Secondary 7 | . . . . . 5 . 1 . . . . . . . . . . . 1 . . . Self-Inflicted Damage 748 | . . . . . 25 . 17 51 . . 4 136 . . . . . 21 105 . . 389 Shots 11 | . . . . . 1 . 1 1 . . . 3 . . . . . . 1 . . 4 Rammed 2 | . . . . . . . . . . . 1 . . . . . . 1 . . . . Targets Rammed 3 | . 1 . . . . . . . . . 1 . . . . . . 1 . . . . Kicked . | . . . . . . . . . . . . . . . . . . . . . . . Crushed 1 | . 1 . . . . . . . . . . . . . . . . . . . . . Highest Temperature 421 | . 2 15 117 . 299 159 292 271 162 82 108 102 . 328 213 125 238 180 199 421 145 232 Average Temperature 80 | . 2 10 42 . 115 80 122 91 70 44 49 18 . 63 48 54 66 45 90 136 42 72 Received Heat Transfer 2266 | . 60 114 27 . 201 . 81 51 9 . 33 777 . 45 117 . 27 84 190 9 36 405 Effects 7 | . . . . . . . 3 . . . . . . . 1 . 1 . . 2 . . Shutdowns 1 | . . . . . . . . . . . . . . . . . . . . 1 . . Energy Bleed 4 | . . . . . . . 1 . . . . . . . 1 . 1 . . 1 . . Interference 2 | . . . . . . . 2 . . . . . . . . . . . . . . . Siege Activations . | . . . . . . . . . . . . . . . . . . . . . . . Martial Activations . | . . . . . . . . . . . . . . . . . . . . . . . Shielding Activations 3 | . . . . . . . . . . . . . . . . . . . . . . 3 Total Turns 85 | . . . . . . . . . . . . . . . . . . . . . . 85 Longest Duration 39 | . . . . . . . . . . . . . . . . . . . . . . 39 Robots Disrupted 1 | . . . . . . . . . . . . . . . . . . . . 1 . . Combat Hostiles 1 | . . . . . . . . . . . . . . . . . . . . 1 . . Robots Corrupted 25 | . . . . . 7 . 1 . . . . 1 . . 6 . . 1 5 4 . . Combat Hostiles 18 | . . . . . 7 . 1 . . . . . . . 5 . . 1 1 3 . . Parts Fried 35 | . . . . . 9 . 2 . . . . 2 . 1 6 . . 1 9 5 . . Impact Corruptions 68 | . . . . . 17 . 5 . . . . 2 . 2 27 . . 6 9 . . . Robots Melted 3 | . . . . . . . . . . . . . . . 2 . . . 1 . . . Combat Hostiles 2 | . . . . . . . . . . . . . . . 1 . . . 1 . . . Parts Melted 23 | . . 1 . . 1 . . 1 . . . 1 . . 2 . 3 . 5 2 1 6 Heat Transferred 9044 | . . 1024 139 . 200 . . 250 . . 180 600 . 74 333 37 296 222 1605 1839 814 1431 Parts Sabotaged . | . . . . . . . . . . . . . . . . . . . . . . . Parts Stolen . | . . . . . . . . . . . . . . . . . . . . . . . Parts Stripped . | . . . . . . . . . . . . . . . . . . . . . . . Power Chain Reactions 3 | . . . . . . . . . . . . 1 . . . . . . 1 1 . . Alert | -11 -10 -10 -9 -9 -6 -6 -6 -6 -6 -6 -6 -5 -5 -5 -4 -4 -4 -3 -3 -2 -2 -2 ------- Run | Yrd Mat Sub Rec Scr Fac Was Fac Ext Cet Arc Hub Fac Was Fac Fac Was Fac Res Tes Res Qua Frg Maximum Alert Level 5 | . . . . . 2 . 1 3 2 1 2 3 1 3 2 . 3 3 2 2 1 5 Low Security (%) 46 | 100 100 . 100 . 86 100 72 23 . 52 49 2 . 20 65 100 4 . . . 28 9 Level 1 22 | . . . . . 7 . 27 11 . 47 11 60 100 32 30 . 10 8 57 67 71 . Level 2 21 | . . . . . 5 . . 18 100 . 38 28 . 32 4 . 73 86 42 32 . 30 Level 3 5 | . . . . . . . . 46 . . . 7 . 14 . . 11 4 . . . 14 Level 4 1 | . . . . . . . . . . . . . . . . . . . . . . 15 Level 5 2 | . . . . . . . . . . . . . . . . . . . . . . 29 High Security . | . . . . . . . . . . . . . . . . . . . . . . . Max Security . | . . . . . . . . . . . . . . . . . . . . . . . Peak Influence 2141 | 5 61 . 166 . 447 177 269 969 595 317 699 839 288 883 413 73 922 771 638 456 324 2141 Initial 512 | . . . 41 . . 156 88 122 512 211 15 207 288 180 413 73 . 339 270 333 225 158 Average 330 | 1 12 . 64 . 130 151 129 553 537 189 287 382 274 404 156 17 531 507 406 353 233 1072 Influence Increases 17487 | 20 210 148 398 . 1389 70 826 1245 375 220 1059 1834 . 1181 853 12 1993 977 844 423 509 2901 Destroy 0b10 Robot/C 6380 | . 120 120 120 . 660 . 200 480 160 80 260 520 . 260 300 . 700 300 280 180 140 1500 Destroy 0b10 Robot/NC 720 | 20 15 . 5 . 90 . 80 40 10 20 10 60 . 70 20 . 45 45 50 35 25 80 Destroy Leader 1046 | . 34 . . . 160 . 40 56 . . 70 100 . 48 54 . 126 56 52 42 22 186 Allied During Kill 1731 | . . 13 18 . 66 . 2 430 170 100 295 . . 79 44 . 508 2 . 4 . . Trap Triggered on 0b10 80 | . . . . . 40 . 20 . . . . 20 . . . . . . . . . . Successful Hack 1125 | . 9 . 42 . 57 . 76 25 . . 24 115 . 234 38 . 136 101 60 51 133 24 Select Force Hacks 440 | . 30 . 210 . . . . . . . 200 . . . . . . . . . . . Disable Machine 1620 | . . . . . 45 . 75 120 15 15 15 375 . 90 105 . 105 . 210 . 90 360 Anti-Garrison Action 150 | . . . . . . . . . . . . . . . . . 150 . . . . . Destroy Structure 1840 | . 2 . 3 . 61 70 63 49 20 5 35 374 . 190 142 12 58 38 132 111 99 376 Partial Spotted 345 | . . . . . 60 . . 45 . . . 30 . 15 30 . 45 60 . . . 60 Lose Combat Pursuer 2010 | . . 15 . . 150 . 270 . . . 150 240 . 195 120 . 120 375 60 . . 315 Influence Decreases 15390 | 20 210 61 485 . 942 391 701 579 763 704 680 1435 565 594 1489 221 1347 1143 730 617 627 1086 Entered New Map 3732 | . . . 46 . . 291 38 129 405 318 30 217 535 78 432 136 . 307 210 261 175 124 Time Decay 6200 | 20 210 41 439 . 601 50 493 310 198 326 80 398 30 386 397 85 310 326 350 286 302 562 Lost Part 1260 | . . . . . 30 10 20 20 . . . 220 . 40 220 . 30 180 170 70 . 250 Lost Ally 1639 | . . 20 . . 152 40 . 120 160 60 270 . . 90 140 . 557 30 . . . . Purge Threat 2559 | . . . . . 159 . 150 . . . 300 600 . . 300 . 450 300 . . 150 150 Squads Dispatched 123 | . 3 . . . 17 . 16 3 . . 13 13 . 6 10 . 12 10 6 5 4 5 Investigation 42 | . 1 . . . 5 . 8 . . . 6 3 . 3 3 . 4 4 . 1 1 3 Extermination 27 | . . . . . 6 . 4 . . . . 3 . 1 2 . 2 . 2 3 3 1 Reinforcement 36 | . 2 . . . 1 . 4 3 . . 4 3 . 1 5 . 2 6 3 1 . 1 Assault 8 | . . . . . 1 . . . . . 2 1 . . . . 3 . 1 . . . Garrison 10 | . . . . . 4 . . . . . 1 3 . 1 . . 1 . . . . . Intercept . | . . . . . . . . . . . . . . . . . . . . . . . Searches Triggered . | . . . . . . . . . . . . . . . . . . . . . . . Construction Impeded 8 | . . . . . . . 1 2 . . . . . . 1 . 1 . 3 . . . Haulers Reinforced 11 | . . . . . . . 1 . . . . 2 . 1 1 . 1 5 . . . . Active Scanning Responses . | . . . . . . . . . . . . . . . . . . . . . . . Cargo Convoy Interrupts 3 | . . . . . 1 . 1 . . . . . . . . . 1 . . . . . Stealth | -11 -10 -10 -9 -9 -6 -6 -6 -6 -6 -6 -6 -5 -5 -5 -4 -4 -4 -3 -3 -2 -2 -2 --------- Run | Yrd Mat Sub Rec Scr Fac Was Fac Ext Cet Arc Hub Fac Was Fac Fac Was Fac Res Tes Res Qua Frg Distress Signals 35 | . 1 . . . . . 4 2 1 . 3 2 . 2 3 . 4 5 1 . 1 6 Communications Jammed . | . . . . . . . . . . . . . . . . . . . . . . . Distress Signals . | . . . . . . . . . . . . . . . . . . . . . . . Times Spotted 645 | . 8 21 4 . 45 6 39 26 9 6 35 47 5 23 26 . 34 52 33 19 16 191 Peak Tracking Total 15 | . 4 6 3 . 4 3 10 8 5 2 14 9 6 6 6 . 9 14 9 5 5 15 Tactical Retreats 73 | . . 1 . . 6 . 9 . . . 4 10 1 5 5 . 3 10 4 . . 15 Traps | -11 -10 -10 -9 -9 -6 -6 -6 -6 -6 -6 -6 -5 -5 -5 -4 -4 -4 -3 -3 -2 -2 -2 ------- Run | Yrd Mat Sub Rec Scr Fac Was Fac Ext Cet Arc Hub Fac Was Fac Fac Was Fac Res Tes Res Qua Frg Traps Triggered 23 | . . 2 . . 5 . 1 4 . . . 2 . 1 1 . 2 2 . . . 3 Indirectly . | . . . . . . . . . . . . . . . . . . . . . . . Trap Hack Attempts 124 | . . . . . 22 . 62 1 . . . . . . . . 39 . . . . . Triggered . | . . . . . . . . . . . . . . . . . . . . . . . Disarmed 1 | . . . . . 1 . . . . . . . . . . . . . . . . . Reprogrammed 22 | . . . . . 6 . 8 1 . . 5 . . . . . 2 . . . . . Reused 8 | . . . . . 4 . 2 . . . . 2 . . . . . . . . . . Traps Extracted 19 | . . . . . 6 . 11 . . . . . . . . . 2 . . . . . Installed 14 | . . . . . 4 . 8 . . . . 2 . . . . . . . . . . Triggered 8 | . . . . . 4 . 2 . . . . 2 . . . . . . . . . . Most Traps Carried 4 | . . . . . 4 . 4 3 3 3 3 3 . . . . 2 2 2 . . . Objects Rigged 13 | . . . . . . . . . . . . 9 . 4 . . . . . . . . Exploded 5 | . . . . . . . . . . . . 4 . 1 . . . . . . . . Machines | -11 -10 -10 -9 -9 -6 -6 -6 -6 -6 -6 -6 -5 -5 -5 -4 -4 -4 -3 -3 -2 -2 -2 ---------- Run | Yrd Mat Sub Rec Scr Fac Was Fac Ext Cet Arc Hub Fac Was Fac Fac Was Fac Res Tes Res Qua Frg Machines Disabled 119 | . . 2 . . 3 . 5 8 1 1 1 25 . 6 7 . 8 . 18 . 6 28 Max in Single Turn 4 | . . 1 . . 1 . 3 1 1 . . 4 . 1 1 . . . 4 . 1 4 Garrison Access 8 | . . . . . 1 . 1 . . . 2 1 . 1 . . 1 . 1 . . . Network Hub 4 | . . . . . . . . . . . 4 . . . . . . . . . . . Machines Repaired . | . . . . . . . . . . . . . . . . . . . . . . . Machines Dismantled . | . . . . . . . . . . . . . . . . . . . . . . . Machines Sabotaged 4 | . . . . . . . . . . . 4 . . . . . . . . . . . Overloaded Fab Kills . | . . . . . . . . . . . . . . . . . . . . . . . Hacking | -11 -10 -10 -9 -9 -6 -6 -6 -6 -6 -6 -6 -5 -5 -5 -4 -4 -4 -3 -3 -2 -2 -2 --------- Run | Yrd Mat Sub Rec Scr Fac Was Fac Ext Cet Arc Hub Fac Was Fac Fac Was Fac Res Tes Res Qua Frg Machines Accessed 171 | . 5 2 13 6 16 . 22 16 3 . 9 14 . 11 7 . 12 7 10 3 8 7 Terminals 103 | . 4 . 6 . 8 . 9 16 3 . 8 8 . 8 3 . 6 4 7 1 7 5 Fabricators 13 | . . . . . 1 . 3 . . . . 2 . . 1 . 2 1 2 1 . . Repair Stations 4 | . . . . . . . 2 . . . . 1 . . . . . . . . 1 . Recycling Units 30 | . 1 . 7 . 4 . 4 . . . . 1 . 2 3 . 3 2 . 1 . 2 Scanalyzers 4 | . . . . . 1 . 2 . . . . . . . . . 1 . . . . . Garrison Access 9 | . . . . . 2 . 2 . . . 1 2 . 1 . . . . 1 . . . Total Hacks 677 | . 10 5 23 48 39 . 54 29 6 . 37 100 . 77 43 . 76 39 27 13 32 19 Successful 358 | . 6 5 14 48 28 . 34 12 . . 23 44 . 42 22 . 34 14 5 5 14 8 Failed 319 | . 4 . 9 . 11 . 20 17 6 . 14 56 . 35 21 . 42 25 22 8 18 11 Catastrophic 61 | . . . 3 . . . 3 1 3 . 2 9 . 4 2 . 10 5 7 2 5 5 Database Lockouts . | . . . . . . . . . . . . . . . . . . . . . . . Manual 367 | . 9 . 23 . 22 . 18 7 1 . 29 53 . 54 31 . 42 23 18 9 17 11 Terminals 485 | . 9 . 15 . 29 . 24 29 6 . 35 79 . 73 35 . 50 28 24 4 31 14 Fabricators 51 | . . . . . 2 . 8 . . . . 12 . . 4 . 13 4 2 6 . . Repair Stations 8 | . . . . . . . 5 . . . . 2 . . . . . . . . 1 . Recycling Units 51 | . 1 . 8 . 4 . 4 . . . . 1 . 3 4 . 11 7 . 3 . 5 Scanalyzers 14 | . . . . . 2 . 10 . . . . . . . . . 2 . . . . . Garrison Access 15 | . . . . . 2 . 3 . . . 2 6 . 1 . . . . 1 . . . Terminal Hacks 188 | . 3 5 5 48 13 . 8 10 . . 8 23 . 21 11 . 12 5 2 1 8 5 Record 48 | . . 4 . 41 . . . . . . . . . . . . . . . . . 3 Part Schematic 4 | . . . 1 . 1 . 1 . . . . 1 . . . . . . . . . . Robot Schematic 1 | . . . 1 . . . . . . . . . . . . . . . . . . . Robot Analysis 11 | . 2 . . 7 1 . . . . . . 1 . . . . . . . . . . Prototype ID Bank 19 | . . . 3 . 3 . 2 1 . . 1 3 . 3 1 . 1 . . . 1 . Open Door 9 | . . . . . . . . 8 . . . . . . . . . . 1 . . . Level Access Points 3 | . . . . . . . . . . . 1 . . 1 . . . 1 . . . . Branch Access Points 6 | . . . . . . . . . . . . 1 . 1 1 . 1 1 . 1 . . Emergency Access Points 5 | . . . . . . . . . . . 1 2 . 1 . . . 1 . . . . Machine Index 1 | . . . . . . . . . . . . . . 1 . . . . . . . . Terminal Index 5 | . . . . . 1 . . . . . 1 1 . . 1 . . . . . 1 . Fabricator Index 1 | . . . . . . . . . . . . . . 1 . . . . . . . . Alert Level 13 | . 1 . . . 3 . 1 1 . . . 2 . 1 1 . 1 . . . 1 1 Unreport Threat 18 | . . . . . 2 . 1 . . . 2 4 . . 2 . 3 2 . . 1 1 Locate Traps 9 | . . . . . . . 1 . . . 1 3 . 1 1 . 2 . . . . . Reprogram Traps 1 | . . . . . . . . . . . 1 . . . . . . . . . . . Dispatch Records 2 | . . . . . . . . . . . . . . 2 . . . . . . . . Security Status 2 | . . . . . . . . . . . . . . 1 . . 1 . . . . . Patrol Status 6 | . . . . . . . . . . . . 2 . 3 . . 1 . . . . . Extermination Status 1 | . . . . . . . . . . . . . . . . . 1 . . . . . Recall Investigation 1 | . . . . . . . . . . . . . . 1 . . . . . . . . Recall Reinforcements 1 | . . . . . . . . . . . . . . 1 . . . . . . . . Hauler Manifests 6 | . . . . . 1 . 1 . . . . 1 . 1 1 . . . . . 1 . Registered Components 5 | . . . . . . . . . . . . 2 . 1 1 . . . . . 1 . Registered Prototypes 2 | . . . . . . . 1 . . . . . . . 1 . . . . . . . Zone Layout 6 | . . . . . 1 . . . . . . . . 1 1 . 1 . . . 2 . Proto ID Catalog 1 | . . 1 . . . . . . . . . . . . . . . . . . . . Protovariant Controls 1 | . . . . . . . . . . . . . . . . . . . 1 . . . Fabricator Hacks 10 | . . . . . . . 2 . . . . 3 . . 1 . 3 . . 1 . . Network Status 6 | . . . . . . . 1 . . . . 2 . . 1 . 1 . . 1 . . Load Schematic 3 | . . . . . . . 1 . . . . 1 . . . . 1 . . . . . Build 1 | . . . . . . . . . . . . . . . . . 1 . . . . . Repair Station Hacks 3 | . . . . . . . 2 . . . . 1 . . . . . . . . . . Scan Component 1 | . . . . . . . 1 . . . . . . . . . . . . . . . Repair 1 | . . . . . . . 1 . . . . . . . . . . . . . . . Refit 1 | . . . . . . . . . . . . 1 . . . . . . . . . . Recycling Unit Hacks . | . . . . . . . . . . . . . . . . . . . . . . . Scanalyzer 14 | . . . . . 2 . 10 . . . . . . . . . 2 . . . . . Insert Component 7 | . . . . . 1 . 5 . . . . . . . . . 1 . . . . . Analyze 7 | . . . . . 1 . 5 . . . . . . . . . 1 . . . . . Garrison Access Hacks 6 | . . . . . 1 . 1 . . . 1 1 . 1 . . . . 1 . . . Seal Access 6 | . . . . . 1 . 1 . . . 1 1 . 1 . . . . 1 . . . Unauthorized Hacks 137 | . 3 . 9 . 12 . 11 2 . . 14 16 . 20 10 . 17 9 2 3 6 3 Terminals 89 | . 2 . 2 . 7 . 4 2 . . 14 11 . 18 4 . 9 7 1 1 5 2 Track 24 | . . . . . 3 . 1 . . . 2 3 . 6 1 . 3 1 . . 2 2 Assimilate 5 | . . . . . . . . . . . 1 . . 2 . . . 2 . . . . Botnet 42 | . 2 . 2 . 3 . 3 2 . . 5 4 . 6 2 . 5 3 1 1 3 . Detonate 4 | . . . . . . . . . . . . 2 . 2 . . . . . . . . Disrupt 1 | . . . . . . . . . . . . . . 1 . . . . . . . . Operators 7 | . . . . . 1 . . . . . . 2 . 1 1 . 1 1 . . . . Sabotage 6 | . . . . . . . . . . . 6 . . . . . . . . . . . Fabricators 15 | . . . . . 1 . 1 . . . . 3 . . 3 . 5 . 1 1 . . Report 6 | . . . . . 1 . . . . . . 1 . . 1 . 1 . 1 1 . . Prioritize 1 | . . . . . . . . . . . . . . . . . 1 . . . . . Liberate 2 | . . . . . . . . . . . . . . . 1 . 1 . . . . . Haulers 4 | . . . . . . . 1 . . . . 1 . . 1 . 1 . . . . . Recompile 2 | . . . . . . . . . . . . 1 . . . . 1 . . . . . Repair Stations 4 | . . . . . . . 2 . . . . 1 . . . . . . . . 1 . Patch 4 | . . . . . . . 2 . . . . 1 . . . . . . . . 1 . Recycling Units 29 | . 1 . 7 . 4 . 4 . . . . 1 . 2 3 . 3 2 . 1 . 1 Tunnel 8 | . 1 . 7 . . . . . . . . . . . . . . . . . . . Fedlink 15 | . . . . . 4 . 4 . . . . 1 . . 2 . . 2 . 1 . 1 Scrapoids 5 | . . . . . . . . . . . . . . 1 1 . 3 . . . . . Scraphulk 1 | . . . . . . . . . . . . . . 1 . . . . . . . . Scanalyzers . | . . . . . . . . . . . . . . . . . . . . . . . Garrison Access . | . . . . . . . . . . . . . . . . . . . . . . . Data Cores Recovered 5 | . . . . . 1 . . . . . 1 . . . . . . . 1 . 1 1 Used 2 | . . . . . 1 . . . . . . . . . . . . . . . 1 . Hacking Detections 115 | . 3 . 5 . 11 . 15 14 3 . 5 10 . 6 3 . 9 6 9 3 7 6 Full Trace Events 4 | . . . . . . . 2 . . . . . . . . . . 1 . . . 1 Feedback Events . | . . . . . . . . . . . . . . . . . . . . . . . Feedback Blocked . | . . . . . . . . . . . . . . . . . . . . . . . Robot Schematics Acquired 1 | . . . 1 . . . . . . . . . . . . . . . . . . . Robots Built . | . . . . . . . . . . . . . . . . . . . . . . . Authchips . | . . . . . . . . . . . . . . . . . . . . . . . Time . | . . . . . . . . . . . . . . . . . . . . . . . Total Robot Build Rating . | . . . . . . . . . . . . . . . . . . . . . . . Part Schematics Acquired 12 | . . . 1 . 1 . 4 . . . . 1 . . . . 1 . 4 . . . Parts Built 2 | . . . . . . . . . . . . . . . . . 2 . . . . . Authchips 1 | . . . . . . . . . . . . . . . . . 1 . . . . . Time 139 | . . . . . . . . . . . . . . . . . 139 . . . . . Total Part Build Rating 18 | . . . . . . . . . . . . . . . . . 18 . . . . . Parts Repaired 1 | . . . . . . . 1 . . . . . . . . . . . . . . . Time 44 | . . . . . . . 44 . . . . . . . . . . . . . . . Parts Recycled . | . . . . . . . . . . . . . . . . . . . . . . . Recycled Matter . | . . . . . . . . . . . . . . . . . . . . . . . Retrieved Matter . | . . . . . . . . . . . . . . . . . . . . . . . Retrieved Components . | . . . . . . . . . . . . . . . . . . . . . . . Parts Scanalyzed 4 | . . . . . 1 . 2 . . . . . . . . . 1 . . . . . Part Schematics Acquired 4 | . . . . . . . 3 . . . . . . . . . 1 . . . . . Parts Damaged 1 | . . . . . . . 1 . . . . . . . . . . . . . . . Bothacking | -11 -10 -10 -9 -9 -6 -6 -6 -6 -6 -6 -6 -5 -5 -5 -4 -4 -4 -3 -3 -2 -2 -2 ------------ Run | Yrd Mat Sub Rec Scr Fac Was Fac Ext Cet Arc Hub Fac Was Fac Fac Was Fac Res Tes Res Qua Frg Used RIF Installer . | . . . . . . . . . . . . . . . . . . . . . . . Robots Hacked 10 | . . . . . 1 . . 1 3 2 . . . 1 2 . . . . . . . Non-combat 7 | . . . . . 1 . . 1 . 2 . . . 1 2 . . . . . . . Combat 3 | . . . . . . . . . 3 . . . . . . . . . . . . . Robot Hacks Applied 12 | . . . . . 1 . . 2 3 2 . . . 1 3 . . . . . . . parse_system 4 | . . . . . . . . 1 3 . . . . . . . . . . . . . no_distress 1 | . . . . . . . . 1 . . . . . . . . . . . . . . find_chute 4 | . . . . . 1 . . . . . . . . . 3 . . . . . . . find_fabricator 1 | . . . . . . . . . . . . . . 1 . . . . . . . . check_alert 2 | . . . . . . . . . . 2 . . . . . . . . . . . . Relay Couplers Released 9 | . . . . . 3 . . . . . 3 . . . . . 3 . . . . . Machine Destruction 6 | . . . . . . . . . . . 3 . . . . . 3 . . . . . Programmers 3 | . . . . . 3 . . . . . . . . . . . . . . . . . Fabnet Peak Effective % . | . . . . . . . . . . . . . . . . . . . . . . . Robots Rewired 21 | . . . 8 . . . . 12 . . . . . . . . . . . 1 . . Allies Hacked 4 | . . . . . . . . . . . 1 . . . 1 . 1 1 . . . . Hacks Repelled . | . . . . . . . . . . . . . . . . . . . . . . . Allies | -11 -10 -10 -9 -9 -6 -6 -6 -6 -6 -6 -6 -5 -5 -5 -4 -4 -4 -3 -3 -2 -2 -2 -------- Run | Yrd Mat Sub Rec Scr Fac Was Fac Ext Cet Arc Hub Fac Was Fac Fac Was Fac Res Tes Res Qua Frg Total Allies 122 | . . 4 8 . . 19 . 32 5 . 1 . . 8 8 20 15 1 . 1 . . Largest Group 24 | . . 4 11 11 9 19 3 24 24 20 16 . . 5 5 20 20 1 . 1 . . Highest-Rated Group 1117 | . . 76 179 179 150 684 127 770 1117 929 694 . . 241 235 820 818 50 . 64 . . Highest-Rated Ally 159 | . . 19 27 27 27 50 50 159 159 159 96 . . 123 54 50 50 50 . 64 . . Total Orders 13 | . . . . 2 7 . . . . . . . . . 4 . . . . . . . STAY 2 | . . . . 1 . . . . . . . . . . 1 . . . . . . . FOLLOW 2 | . . . . 1 . . . . . . . . . . 1 . . . . . . . EXPLORE 9 | . . . . . 7 . . . . . . . . . 2 . . . . . . . Ally Attacks 961 | . . 16 13 . 36 120 5 144 83 31 67 . . 75 76 7 270 17 . 1 . . Total Damage 25880 | . . 298 220 . 764 4083 340 3135 1962 585 2686 . . 1774 2180 313 7168 300 . 72 . . Kills 142 | . . 4 4 . 8 11 4 20 10 4 14 . . 15 8 1 37 2 . . . . Allies Corrupted 7 | . . . . . . . . . . . 2 . . . . . 4 . . 1 . . Allies Melted 2 | . . . . . . . . . . . 1 . . . . . . . . . . 1 Intel | -11 -10 -10 -9 -9 -6 -6 -6 -6 -6 -6 -6 -5 -5 -5 -4 -4 -4 -3 -3 -2 -2 -2 ------- Run | Yrd Mat Sub Rec Scr Fac Was Fac Ext Cet Arc Hub Fac Was Fac Fac Was Fac Res Tes Res Qua Frg Active Infowar (turns) 18642 | 25 840 2497 . 1831 2318 107 1552 694 405 722 203 936 . 856 966 39 270 732 784 626 665 1574 Optics 7937 | . . . . . . . 279 694 405 722 203 936 . 9 966 . . 79 784 626 660 1574 Sensors 6423 | . . . . . 2260 107 1541 367 . . . 294 . 600 380 . . 92 . . 455 327 IFF 1 | . . . . . . . . 1 . . . . . . . . . . . . . . Terrain 1185 | . . . . . . . . . . . . . . . . . . 46 505 626 8 . Structural 4621 | . . . . 133 1421 . 751 . 145 27 163 104 . 856 476 . 269 209 59 . 8 . Traps 3203 | . . . . . 851 . 854 679 260 553 5 1 . . . . . . . . . . Seismic 6103 | 25 840 2497 . 1698 47 . . . . . . . . . . . 226 443 133 194 . . T.N.C. 295 | . . . . . . . 232 . . . . . . . . . . 63 . . . . Machine Analysis 660 | . . . . . . . . . . . . . . . . . . 641 19 . . . Cloaking 91 | . . . . . . . . . . . . . . . . 39 . . 5 47 . . ECM 27 | . . . . . . . . . . . . 26 . . . . 1 . . . . . Robot Analysis Total 11 | . 2 . . 7 1 . . . . . . 1 . . . . . . . . . . Derelict Logs Recovered 6 | . . 2 . 4 . . . . . . . . . . . . . . . . . . Drone Launches 14 | . . . . . 7 . . . . . . . . 5 2 . . . . . . . Drone Recoveries 5 | . . . . . 1 . . . . . . . . 3 1 . . . . . . . Exploration | -11 -10 -10 -9 -9 -6 -6 -6 -6 -6 -6 -6 -5 -5 -5 -4 -4 -4 -3 -3 -2 -2 -2 ------------- Run | Yrd Mat Sub Rec Scr Fac Was Fac Ext Cet Arc Hub Fac Was Fac Fac Was Fac Res Tes Res Qua Frg Turns Passed 23096 | 179 864 4112 1130 2163 2451 107 1570 694 405 722 203 944 70 903 972 429 695 732 784 626 665 1676 Spaces Moved 20141 | 78 366 2370 616 1672 2245 198 2179 549 229 318 248 925 129 1203 725 318 905 1081 960 487 820 1520 Core 379 | 1 . . . 139 . . . . . 50 . 13 129 11 19 17 . . . . . . Treads 3454 | 76 366 2370 616 26 . . . . . . . . . . . . . . . . . . Legs 722 | . . . . . . . . . . . . . . . . . . . 23 244 . 455 Wheels 2330 | 1 . . . 1507 742 . . . . . . 80 . . . . . . . . . . Hover 11800 | . . . . . 1503 198 2179 549 229 268 248 832 . 884 706 301 905 519 351 243 820 1065 Flight 1456 | . . . . . . . . . . . . . . 308 . . . 562 586 . . . Fastest Speed 16 | 50 160 160 160 50 27 30 24 27 27 36 48 45 50 40 30 49 38 18 16 32 32 32 Average Speed 77 | 157 160 160 160 122 68 37 39 35 35 158 48 64 50 46 61 56 40 32 39 69 47 61 Slowest Speed 800 | 160 160 160 160 160 130 40 108 36 36 800 112 190 50 60 160 66 50 146 250 114 106 260 Overloaded Moves 84 | . . . . . 25 1 22 11 8 . . . . 12 . . . . 5 . . . Propulsion Burnouts . | . . . . . . . . . . . . . . . . . . . . . . . Robots Hopped 10 | . . . . . . . . . . . . . . . . . . 5 5 . . . Potential Cave-ins 3 | . . . . . . . . . . . . . . . . . . . . . . 3 Cave-ins Triggered . | . . . . . . . . . . . . . . . . . . . . . . . Teleports 9 | . . . . . . . . . . . . . . . . . . . . . 1 8 Exploration Rate (%) 60 | 6 63 92 98 92 59 89 53 73 89 99 45 34 71 27 18 96 26 31 76 16 78 59 Regions Visited 22 Branch Regions 10 Pre-discovered Areas 16 | . 1 . 7 7 1 . . . . . . . . . . . . . . . . . Known Exits Taken 11 | . . . . . . . 1 1 1 1 1 . . 1 . . 1 1 1 1 1 . Unknown Exits Taken 5 | 1 1 1 1 1 . . . . . . . . . . . . . . . . . . Scrap Searched 9 | . . 1 . 8 . . . . . . . . . . . . . . . . . . Spaces Dug 227 | . . 3 . . 25 1 26 7 2 4 10 19 . 14 5 . 5 17 7 1 26 55 Terrain Destroyed 891 | . . 4 3 . 69 1 50 39 2 4 13 248 . 40 8 . 8 17 65 38 34 248 Melee 121 | . . 2 . . 14 1 25 7 2 4 6 17 . 11 5 . 5 17 5 . . . Projectile 175 | . . 2 3 . 20 . 3 . . . 7 2 . 5 2 . 3 . 15 22 22 69 AOE 593 | . . . . . 35 . 22 32 . . . 228 . 24 . . . . 45 16 12 179 Terrain Rammed . | . . . . . . . . . . . . . . . . . . . . . . . Walls Destroyed . | . . . . . . . . . . . . . . . . . . . . . . . Machines Disabled . | . . . . . . . . . . . . . . . . . . . . . . . Actions | -11 -10 -10 -9 -9 -6 -6 -6 -6 -6 -6 -6 -5 -5 -5 -4 -4 -4 -3 -3 -2 -2 -2 --------- Run | Yrd Mat Sub Rec Scr Fac Was Fac Ext Cet Arc Hub Fac Was Fac Fac Was Fac Res Tes Res Qua Frg Total 25937 | 109 590 2563 750 1799 2999 227 2740 983 542 515 307 1147 134 1463 1109 566 1162 1309 1249 677 1030 1967 Wait 3136 | 11 170 53 34 61 400 23 306 291 291 163 32 59 3 164 254 225 115 69 71 66 126 149 Move 20107 | 77 365 2369 615 1671 2245 197 2178 548 228 317 248 925 128 1202 725 317 904 1072 951 486 819 1520 Hop 6 | . . . . . . . . . . . . . . . . . . 3 3 . . . Pick Up 195 | 1 17 13 3 29 34 . 11 4 . 2 . 7 . 3 3 2 6 5 25 6 8 16 Fast Attach 360 | 8 . 6 . 8 33 2 27 5 5 7 . 20 1 28 19 12 29 35 32 20 11 52 Attach 123 | . . 2 . 4 36 . 5 3 . 1 . 16 . 2 . 1 1 6 18 9 3 16 Detach 75 | . . 1 . 2 15 . 7 1 . . 1 10 1 1 . . 2 6 12 6 2 8 Swap 124 | . 4 11 1 3 18 2 19 13 4 2 8 9 . . 4 . 4 4 2 2 3 11 Drop 350 | 1 5 20 3 21 58 2 28 9 5 8 1 12 1 8 14 9 16 18 44 16 12 39 Fire 627 | 11 28 63 6 . 43 . 18 14 1 . 10 23 . 10 37 . 13 23 67 60 46 154 Melee 549 | . . 25 . . 81 1 71 56 8 15 7 64 . 45 53 . 33 65 24 . . 1 Ram 1 | . . . . . . . . . . . . . . . . . . 1 . . . . Kick . | . . . . . . . . . . . . . . . . . . . . . . . Crush 1 | . 1 . . . . . . . . . . . . . . . . . . . . . Escape Stasis 46 | . . . . . 8 . . 35 . . . . . . . . . 2 . . . 1 Rewire 97 | . . . 88 . . . . 3 . . . . . . . . . . . 6 . . Trap 138 | . . . . . 26 . 70 1 . . . 2 . . . . 39 . . . . . Miscellaneous 2 | . . . . . 2 . . . . . . . . . . . . . . . . . Route ------- -11/Scrapyard -10/Materials (discovered 5 exits: [*Mat x2] / [*Min x2] / *Sub) -10/Subcaves (discovered 3 exits: [*Mat x2] / *Rec) -9/Recycling (discovered 2 exits: [*Fac] / *Scr) -9/Scraptown (discovered 2 exits: *Fac x2) -6/Factory (discovered 7 exits: *Fac x4 / *Low / *Ext x2) -6/Waste -6/Factory (discovered 4 exits: *Fac / *Low x2 / *Ext) -6/Extension (discovered 2 exits: *Fac / *Cet) -6/Cetus (discovered 2 exits: *Fac / *Arc) -6/Archives (discovered 3 exits: *Fac / *Hub x2) -6/Hub_04(d) (discovered 4 exits: *Fac x4) -5/Factory (discovered 3 exits: *Fac / Upp x2) -5/Waste -5/Factory (discovered 6 exits: *Fac x4 / Upp x2) -4/Factory (discovered 3 exits: *Res / Upp x2) -4/Waste -4/Factory (discovered 3 exits: *Res / Upp x2) -3/Research (discovered 6 exits: Res x3 / *Arm / *Tes x2) -3/Testing -2/Research (discovered 2 exits: *Qua x2) -2/Quarantine (discovered 3 exits: *Acc / *Sec / *Frg) -2/Protoforge History --------- Turn | Location | Event 2 | -11/Scrapyard | Met Revision 17 13 | -11/Scrapyard | Discovered new exit (range 15) 180 | -11/Scrapyard | Entered Materials 306 | -10/Materials | Build established: Mutant 374 | -10/Materials | Discovered new exit (range 6) 530 | -10/Materials | Discovered new exit (range 8) 657 | -10/Materials | Discovered new exit (range 6) 670 | -10/Materials | Discovered new exit (range 15) 1015 | -10/Materials | Discovered new exit (range 8) 1044 | -10/Materials | Entered Subcaves 1045 | -10/Subcaves | Approached by a straggling Scientist 1154 | -10/Subcaves | A swath of the cavern ceiling suddenly collapsed 1303 | -10/Subcaves | Learned location of 1 exit from Materials 1497 | -10/Subcaves | Discovered new exit (range 7) 1500 | -10/Subcaves | Shifting Twisted Machinery released Piercing Trap 1515 | -10/Subcaves | Shifting Twisted Machinery released Sub. Laser 1551 | -10/Subcaves | Discovered new exit (range 4) 1708 | -10/Subcaves | Build established: Scavenger-Mutant 1894 | -10/Subcaves | Visited Clippyterm 1899 | -10/Subcaves | Learned Factory stockpile data 1966 | -10/Subcaves | Shifting Twisted Machinery released Riot Gun 2203 | -10/Subcaves | Core integrity fell below 50% 2226 | -10/Subcaves | Build established: Mutant 2774 | -10/Subcaves | A swath of the cavern ceiling suddenly collapsed 3194 | -10/Subcaves | Shifting Twisted Machinery released Battle Rifle 3221 | -10/Subcaves | Shifting Twisted Machinery released Battle Cannon 3542 | -10/Subcaves | Visited triangular shrine 3553 | -10/Subcaves | Found Prototype Device 3553 | -10/Subcaves | Identified V3-11A's Pendant 3558 | -10/Subcaves | Befriended Subdweller 3663 | -10/Subcaves | Befriended Subdweller 3668 | -10/Subcaves | Befriended Subdweller 3973 | -10/Subcaves | Befriended Subdweller 4842 | -10/Subcaves | Visited 4L-MR0's lab 4858 | -10/Subcaves | Found Gun Armor 5128 | -10/Subcaves | Discovered new exit (range 12) 5156 | -10/Subcaves | Entered Recycling 5156 | -9/Recycling | Accompanied by 3 allies 5732 | -9/Recycling | Scanned before Scraplab entrance 5859 | -9/Recycling | Core integrity fell below 20% 5891 | -9/Recycling | Discovered new exit (range 8) 6241 | -9/Recycling | Entered Scraplab 6256 | -9/Recycling | Discovered new exit (range 3) 6286 | -9/Recycling | Entered Scraptown 6286 | -9/Scraptown | Accompanied by 11 allies 6321 | -9/Scraptown | Build established: Commander-Mutant 6481 | -9/Scraptown | Heard Great Nut preacher, LISTEN AND RECITE! 6487 | -9/Scraptown | Delivered V3-11A's Pendant to T0-NE2 in exchange for information 6675 | -9/Scraptown | Scanned Subdweller tech in exchange for log data 6678 | -9/Scraptown | Learned 12 Factory zone layouts 6679 | -9/Scraptown | Learned location of Zion (-6) 6680 | -9/Scraptown | Learned location of Quarantine (-2) 6682 | -9/Scraptown | Learned Research emergency access door positions 6707 | -9/Scraptown | Discovered new exit (range 5) 6848 | -9/Scraptown | Visited SPCMW 6883 | -9/Scraptown | Visited Symbiants 6902 | -9/Scraptown | Visited IN-MT5's Study 6980 | -9/Scraptown | Visited The Evicted 7016 | -9/Scraptown | Visited TADAMA 7255 | -9/Scraptown | Visited Assassins FH 7276 | -9/Scraptown | Visited Cyclists 7302 | -9/Scraptown | Visited UFD Registry 7302 | -9/Scraptown | Registered with UFD as "Ionbox" 7339 | -9/Scraptown | Entered Cyclist Reading Room 7402 | -9/Scraptown | Visited Curators Association 7462 | -9/Scraptown | Visited Junk Cannon Lab 7486 | -9/Scraptown | Found Prototype Special Weapon 7486 | -9/Scraptown | Identified Junk Cannon 7652 | -9/Scraptown | Visited A0-MCA Data Center 7660 | -9/Scraptown | Given a B- rating by A0-MCA 7666 | -9/Scraptown | Found A0-MCA's Component Scanner 7691 | -9/Scraptown | Visited DA-N13 Charitable Foundation 7696 | -9/Scraptown | Found DCF Scrap (29 items) 7743 | -9/Scraptown | Visited Analyses Database 7765 | -9/Scraptown | Visited Cartography Club 7806 | -9/Scraptown | Discovered new exit (range 5) 7903 | -9/Scraptown | Visited Scrap Suit Storage 7944 | -9/Scraptown | Visited Abandonware Association 7959 | -9/Scraptown | Learned abandonware demo "ERRANTS.EXE" 7959 | -9/Scraptown | Learned abandonware demo "MELTYB.EXE" 7990 | -9/Scraptown | Visited Scrapoid Research Area 8205 | -9/Scraptown | Learned location of Storage (-9) 8205 | -9/Scraptown | Learned location of Warlord (-5) 8205 | -9/Scraptown | Learned location of Cetus (-6) 8205 | -9/Scraptown | Learned 12 Materials zone layouts 8205 | -9/Scraptown | Learned 12 Factory zone layouts 8205 | -9/Scraptown | Learned 4 Mines zone layouts 8205 | -9/Scraptown | Learned 4 Recycling zone layouts 8205 | -9/Scraptown | Learned 16 Lower Caves zone layouts 8205 | -9/Scraptown | Learned 12 Upper Caves zone layouts 8205 | -9/Scraptown | Learned 16 Upper Caves zone layouts 8205 | -9/Scraptown | Learned 8 Proximity Caves zone layouts 8205 | -9/Scraptown | Learned 24 Proximity Caves zone layouts 8205 | -9/Scraptown | Learned Factory emergency access door positions 8205 | -9/Scraptown | Learned location of 2 exits from Research 8205 | -9/Scraptown | Learned location of 1 exit from Lower Caves 8205 | -9/Scraptown | Learned location of 1 exit from Upper Caves 8220 | -9/Scraptown | Found Deep Structural Scanner 8344 | -9/Scraptown | Met Optimus 8344 | -9/Scraptown | Accepted into 0bPrime 8449 | -9/Scraptown | Entered Factory 8449 | -6/Factory | Accompanied by 9 allies 8449 | -6/Factory | Evolved 8 slots: Propulsion x4, Utility x4 8450 | -6/Factory | Identified exit to Extension 8756 | -6/Factory | Discovered exit to Extension (range 29) 8784 | -6/Factory | Build established: Commander-Assassin 8810 | -6/Factory | Loaded intel: 8 recycling unit locations 8857 | -6/Factory | Lost 3 allies 8881 | -6/Factory | Garrison activated, responded to threat 8949 | -6/Factory | Discovered new exit (range 18) 8968 | -6/Factory | Identified exit to Factory 9436 | -6/Factory | Build established: Hacker-Assassin 9866 | -6/Factory | Discovered exit to Factory (range 9) 9912 | -6/Factory | Discovered exit to Factory (range 11) 10089 | -6/Factory | Discovered exit to Factory (range 18) 10210 | -6/Factory | Learned location of Protoforge (-2) 10434 | -6/Factory | Discovered new exit (range 14) 10460 | -6/Factory | Build established: Scavenger-Scout 10464 | -6/Factory | Identified exit to Lower Caves 10477 | -6/Factory | Garrison activated, responded to threat 10760 | -6/Factory | Cargo convoy interrupted 10899 | -6/Factory | First assault squad dispatched 10900 | -6/Factory | Manually triggered Chute Trap 10900 | -6/Factory | Sucked down chute 10900 | -6/Factory | Entered Waste 10908 | -6/Waste | Spotted C-40 Crusher 10911 | -6/Waste | Spotted C-40 Crusher 10915 | -6/Waste | EMP discharged 10915 | -6/Waste | System corruption reached 10% 10927 | -6/Waste | Met Warlord forces unprepared to attack 10934 | -6/Waste | Allies destroyed C-40 Crusher 10943 | -6/Waste | Allies destroyed C-40 Crusher 10944 | -6/Waste | Spotted C-40 Crusher 10948 | -6/Waste | Spotted C-40 Crusher 10948 | -6/Waste | Allies destroyed C-40 Crusher 10952 | -6/Waste | Spotted C-40 Crusher 10954 | -6/Waste | Spotted C-40 Crusher 10959 | -6/Waste | Discovered new exit (range 15) 10991 | -6/Waste | Identified exit to Factory 11004 | -6/Waste | Build established: Scavenger-Mutant 11007 | -6/Waste | Lost 7 allies 11007 | -6/Waste | Entered Factory 11007 | -6/Factory | Accompanied by 3 allies 11029 | -6/Factory | Loaded intel: 8 recycling unit locations 11060 | -6/Factory | Discovered exit to Lower Caves (range 8) 11311 | -6/Factory | Build established: Scavenger-Scout 11405 | -6/Factory | Discovered exit to Factory (range 17) 11417 | -6/Factory | Discovered exit to Lower Caves (range 13) 11527 | -6/Factory | Discovered exit to Extension (range 13) 11825 | -6/Factory | Repaired Broken Cld. Airjet? 12232 | -6/Factory | Cargo convoy interrupted 12252 | -6/Factory | Found Prototype Launcher 12252 | -6/Factory | Identified Tesla Bomb Launcher 12263 | -6/Factory | Found Prototype Device 12263 | -6/Factory | Identified Exp. Shield Generator 12287 | -6/Factory | Found Prototype Processor 12287 | -6/Factory | Identified Spectral Analyzer 12426 | -6/Factory | Spotted B-75 Beast 12577 | -6/Factory | Entered Extension 12629 | -6/Extension | Rescued a captive Derelict 12631 | -6/Extension | Rescued a captive Derelict 12650 | -6/Extension | Rescued A7 12758 | -6/Extension | Rescued a captive Derelict 12761 | -6/Extension | Rescued a captive Derelict 12856 | -6/Extension | Spotted B-75 Beast 12888 | -6/Extension | Rescued a captive Derelict 12889 | -6/Extension | Rescued a captive Derelict 12895 | -6/Extension | Spotted B-75 Beast 12925 | -6/Extension | Allies destroyed B-75 Beast 12945 | -6/Extension | Lost 6 allies 12992 | -6/Extension | Rescued a captive Derelict 13003 | -6/Extension | Rescued a captive Derelict 13007 | -6/Extension | Rescued a captive Derelict 13009 | -6/Extension | Rescued a captive Derelict 13047 | -6/Extension | Rescued a captive Derelict 13049 | -6/Extension | Rescued a captive Derelict 13090 | -6/Extension | Rescued a captive Derelict 13091 | -6/Extension | Rescued a captive Derelict 13092 | -6/Extension | Rescued a captive Derelict 13093 | -6/Extension | Rescued a captive Derelict 13128 | -6/Extension | Rescued a captive Derelict 13129 | -6/Extension | Rescued a captive Derelict 13135 | -6/Extension | Rescued a captive Derelict 13142 | -6/Extension | Discovered exit to Factory (range 10) 13143 | -6/Extension | Discovered new exit (range 6) 13159 | -6/Extension | Identified exit to Cetus 13237 | -6/Extension | Build established: Commander-Mutant 13271 | -6/Extension | Entered Cetus 13271 | -6/Cetus | Accompanied by 24 allies (A7) 13273 | -6/Cetus | Spotted Cetus Guard 13273 | -6/Cetus | Spotted Cetus Guard 13275 | -6/Cetus | Spotted Cetus Guard 13275 | -6/Cetus | Spotted Cetus Guard 13276 | -6/Cetus | Acquired a Cetus Manufacturing Module code from A7 13286 | -6/Cetus | Allies destroyed Cetus Guard 13297 | -6/Cetus | Allies destroyed Cetus Guard 13302 | -6/Cetus | Allies destroyed Cetus Guard 13330 | -6/Cetus | Started Cetus Manufacturing Module 13331 | -6/Cetus | Lost 5 allies 13355 | -6/Cetus | Manufactured an Enhanced Grunt 13363 | -6/Cetus | Escorted A7 to Cetus Mainframe 13380 | -6/Cetus | Manufactured an Enhanced Grunt 13405 | -6/Cetus | Manufactured an Enhanced Grunt 13430 | -6/Cetus | Manufactured an Enhanced Grunt 13455 | -6/Cetus | Manufactured an Enhanced Grunt 13469 | -6/Cetus | Discovered new exit (range 23) 13481 | -6/Cetus | Spotted Cetus Guard 13481 | -6/Cetus | Spotted Cetus Guard 13481 | -6/Cetus | Spotted Cetus Guard 13481 | -6/Cetus | Spotted Cetus Guard 13505 | -6/Cetus | Discovered exit to Factory (range 23) 13519 | -6/Cetus | Allies destroyed Cetus Guard 13527 | -6/Cetus | Allies destroyed Cetus Guard 13529 | -6/Cetus | Allies destroyed Cetus Guard 13533 | -6/Cetus | Allies destroyed Cetus Guard 13543 | -6/Cetus | Met Revision 17 13559 | -6/Cetus | Lost 3 allies 13562 | -6/Cetus | Identified exit to Archives 13676 | -6/Cetus | Entered Archives 13676 | -6/Archives | Accompanied by 20 allies (A7) 13681 | -6/Archives | Received a hacking code to weaken MAIN.C 13710 | -6/Archives | Discovered new exit (range 18) 13711 | -6/Archives | Discovered new exit (range 24) 13724 | -6/Archives | Discovered exit to Factory (range 21) 13733 | -6/Archives | Lost 3 allies 13749 | -6/Archives | Identified exit to Hub_04(d) 14398 | -6/Archives | Entered Hub_04(d) 14398 | -6/Hub_04(d) | Accompanied by 16 allies 14461 | -6/Hub_04(d) | Spotted B-75 Beast 14470 | -6/Hub_04(d) | Destroyed B-75 Beast 14504 | -6/Hub_04(d) | Discovered exit to Factory (range 10) 14515 | -6/Hub_04(d) | Network Hub disabled 14519 | -6/Hub_04(d) | Spotted Lightning 14520 | -6/Hub_04(d) | Spotted Lightning 14523 | -6/Hub_04(d) | Network Hub disabled 14526 | -6/Hub_04(d) | Network Hub disabled 14530 | -6/Hub_04(d) | Garrison activated, responded to threat 14566 | -6/Hub_04(d) | Lost 11 allies 14572 | -6/Hub_04(d) | Network Hub disabled 14601 | -6/Hub_04(d) | Entered Factory 14601 | -5/Factory | Evolved 2 slots: Power x1, Propulsion x1 14604 | -5/Factory | Discovered new exit (range 16) 14616 | -5/Factory | Identified exit to Factory 14637 | -5/Factory | Loaded intel: 8 recycling unit locations 14654 | -5/Factory | Identified exit to Upper Caves 14765 | -5/Factory | Spotted B-75 Beast 14800 | -5/Factory | Lost 3 parts (2n1w) 14809 | -5/Factory | Garrison activated, responded to threat 14839 | -5/Factory | Destroyed 7 combat bots 14917 | -5/Factory | Lost 3 parts (1p1u1w) 14966 | -5/Factory | Build established: Mutant 15234 | -5/Factory | Lost 3 parts (2n1w) 15495 | -5/Factory | Core integrity fell below 50% 15501 | -5/Factory | First assault squad dispatched 15537 | -5/Factory | Released all parts (7) 15540 | -5/Factory | Core integrity fell below 20% 15545 | -5/Factory | Manually triggered Chute Trap 15545 | -5/Factory | Sucked down chute 15545 | -5/Factory | Entered Waste 15549 | -5/Waste | Spotted C-40 Crusher 15550 | -5/Waste | Spotted C-40 Crusher 15560 | -5/Waste | EMP discharged 15560 | -5/Waste | System corruption reached 10% 15566 | -5/Waste | Lost 9 parts (7n2u) 15568 | -5/Waste | Spotted C-40 Crusher 15573 | -5/Waste | Spotted C-40 Crusher 15582 | -5/Waste | Spotted C-40 Crusher 15599 | -5/Waste | Discovered new exit (range 11) 15615 | -5/Waste | Entered Factory 15878 | -5/Factory | Lost 4 parts (2n2w) 15970 | -5/Factory | Spotted B-75 Beast 16081 | -5/Factory | Scraphulk reinforcements arrived? 16203 | -5/Factory | Build established: Scout 16292 | -5/Factory | Garrison activated, responded to threat 16368 | -5/Factory | Scrapoids reinforcements arrived? 16441 | -5/Factory | Lost 4 allies 16518 | -5/Factory | Entered another Factory area 16518 | -4/Factory | Accompanied by 1 ally 16518 | -4/Factory | Evolved 2 slots: Propulsion x1, Utility x1 16597 | -4/Factory | Loaded intel: 8 recycling unit locations 16603 | -4/Factory | Discovered new exit (range 17) 16608 | -4/Factory | Identified exit to Research 16613 | -4/Factory | Spotted B-86 Titan 16671 | -4/Factory | Identified exit to Upper Caves 16686 | -4/Factory | Lost 3 parts (2n1u) 16961 | -4/Factory | Lost 5 parts (4n1w) 17025 | -4/Factory | Lost 4 parts (1n3u) 17191 | -4/Factory | Scrapoid reinforcements arrived 17266 | -4/Factory | Found Scrap Suit 17391 | -4/Factory | Lost 3 allies 17442 | -4/Factory | Core integrity fell below 50% 17459 | -4/Factory | System corruption reached 10% 17480 | -4/Factory | Core integrity fell below 20% 17484 | -4/Factory | Released all parts (2) 17490 | -4/Factory | Manually triggered Chute Trap 17490 | -4/Factory | Sucked down chute 17490 | -4/Factory | Entered Waste 17491 | -4/Waste | Joined by Warlord forces that had cleared the area 17513 | -4/Waste | Lost 10 parts (3n3u4w) 17550 | -4/Waste | A Compactor rumbled back to life 17550 | -4/Waste | Spotted C-40 Crusher 17551 | -4/Waste | Allies destroyed C-40 Crusher 17559 | -4/Waste | Build established: Mutant 17586 | -4/Waste | Found Prototype Device 17586 | -4/Waste | Identified Imp. Particle Accelerator 17752 | -4/Waste | Found Adv. Force Booster 17758 | -4/Waste | Discovered new exit (range 10) 17758 | -4/Waste | Found Prototype Device 17758 | -4/Waste | Identified Exp. EM Shield 17919 | -4/Waste | Entered Factory 17919 | -4/Factory | Accompanied by 20 allies 17942 | -4/Factory | Garrison activated, responded to threat 17981 | -4/Factory | Lost 7 allies 18269 | -4/Factory | Lost 3 allies 18298 | -4/Factory | Build established: Scavenger-Mutant 18331 | -4/Factory | Lost 3 allies 18364 | -4/Factory | Spotted B-86 Titan 18391 | -4/Factory | Scrapoids reinforcements arrived? 18419 | -4/Factory | First assault squad dispatched 18449 | -4/Factory | Scrapoids reinforcements arrived? 18506 | -4/Factory | Fabricated Cmb. Linear Gravjet (x2) 18575 | -4/Factory | Cargo convoy interrupted 18594 | -4/Factory | Discovered exit to Research (range 15) 18600 | -4/Factory | Scrapoids reinforcements arrived? 18614 | -4/Factory | Entered Research 18614 | -3/Research | Accompanied by 1 ally 18614 | -3/Research | Evolved 2 slots: Utility x1, Weapon x1 18615 | -3/Research | Identified exit to Armory 18616 | -3/Research | Identified exit to Testing 18616 | -3/Research | Identified exit to Research 18637 | -3/Research | Lost 4 allies 18773 | -3/Research | Spotted B-86 Titan 18774 | -3/Research | Loaded intel: 5 recycling unit locations 18814 | -3/Research | Revision forces began assault on 0b10 18851 | -3/Research | Met up with Revision 17++ 18857 | -3/Research | Lost 4 parts (3n1u) 19058 | -3/Research | Lost 5 parts (1p4n) 19137 | -3/Research | Lost 4 parts (1n1u2w) 19314 | -3/Research | Research terminal network offline 19346 | -3/Research | Entered Testing 19351 | -3/Testing | Found Prototype Energy Gun 19351 | -3/Testing | Identified Tachyon Dispersion Ray 19367 | -3/Testing | Found Prototype Launcher 19371 | -3/Testing | Identified Com. Tesla Bomb Launcher 19411 | -3/Testing | Found Prototype Device 19411 | -3/Testing | Identified Exp. Hardlight Generator 19424 | -3/Testing | Spotted Striker 19474 | -3/Testing | System corruption reached 10% 19511 | -3/Testing | Core integrity fell below 50% 19547 | -3/Testing | Lost 4 parts (1n2u1w) 19555 | -3/Testing | Found Prototype Device 19557 | -3/Testing | Identified Exp. EM Disruption Field 19617 | -3/Testing | Found Prototype Energy Cannon 19617 | -3/Testing | Identified Imp. Potential Cannon 19626 | -3/Testing | Found Imp. Potential Cannon 19637 | -3/Testing | Found Prototype Ballistic Cannon 19637 | -3/Testing | Identified Omega Cannon 19697 | -3/Testing | Lost 7 parts (4n3u) 19783 | -3/Testing | Found Prototype Device 19783 | -3/Testing | Identified AEGIS Remote Shield 19810 | -3/Testing | Found Prototype Protection 19810 | -3/Testing | Identified SHELL Armor 19827 | -3/Testing | Lost 3 parts (2n1u) 20049 | -3/Testing | Found Prototype Hackware 20049 | -3/Testing | Identified Ghost Barrier 20063 | -3/Testing | Found Prototype Energy Cannon 20063 | -3/Testing | Identified Hpw. Disruptor Cannon 20096 | -3/Testing | First assault squad dispatched 20119 | -3/Testing | Discovered exit to Research (range 15) 20130 | -3/Testing | Entered Research 20130 | -2/Research | Evolved 2 slots: Utility x2 20145 | -2/Research | Identified exit to Quarantine 20387 | -2/Research | Loaded intel: 5 recycling unit locations 20756 | -2/Research | Entered Quarantine 20783 | -2/Quarantine | Lost 3 parts (3n) 21022 | -2/Quarantine | Build established: Scavenger-Skirmisher 21030 | -2/Quarantine | Found Prototype Launcher 21030 | -2/Quarantine | Identified Hellfire Missile Launcher 21055 | -2/Quarantine | Destroyed 7 combat bots 21127 | -2/Quarantine | Discovered new exit (range 19) 21132 | -2/Quarantine | Found Alien Artifact 21142 | -2/Quarantine | Identified exit to Access 21147 | -2/Quarantine | Identified Subatomic Replicator 21147 | -2/Quarantine | Used Subatomic Replicator to create Alien Artifact 21162 | -2/Quarantine | Found Alien Artifact 21165 | -2/Quarantine | Identified Dimensional Node Initializer 21165 | -2/Quarantine | Initialized slip node 21169 | -2/Quarantine | Found Dimensional Node Initializer 21195 | -2/Quarantine | Found Alien Artifact 21315 | -2/Quarantine | Identified Hpw. Transdimensional Reconstructor 21315 | -2/Quarantine | Warped through subspace to slip node 21325 | -2/Quarantine | Found Hpw. Transdimensional Reconstructor 21337 | -2/Quarantine | Build established: Scavenger-Scout 21393 | -2/Quarantine | Spotted Fortress 21415 | -2/Quarantine | Discovered new exit (range 6) 21415 | -2/Quarantine | Discovered new exit (range 6) 21417 | -2/Quarantine | Identified exit to Protoforge 21418 | -2/Quarantine | Identified exit to Section 7 21421 | -2/Quarantine | Entered Protoforge 21499 | -2/Protoforge | Spotted Hotshot 21499 | -2/Protoforge | Spotted Hotshot 21564 | -2/Protoforge | Spotted Hotshot 21565 | -2/Protoforge | Spotted Hotshot 21570 | -2/Protoforge | Superfortress began startup sequence 21578 | -2/Protoforge | Destroyed Hotshot 21578 | -2/Protoforge | Destroyed Hotshot 21655 | -2/Protoforge | Spotted Overlord 21676 | -2/Protoforge | Spotted AP7-3 21676 | -2/Protoforge | Spotted AP7-3 21681 | -2/Protoforge | System corruption reached 10% 21698 | -2/Protoforge | Spotted SKR-2 21698 | -2/Protoforge | Spotted SKR-2 21698 | -2/Protoforge | Spotted SKR-2 21699 | -2/Protoforge | Spotted EXE-6 21719 | -2/Protoforge | UFD initiated attack on Protoforge 21719 | -2/Protoforge | Loaded intel: 3 recycling unit locations 21727 | -2/Protoforge | Spotted EXE-6 21727 | -2/Protoforge | Spotted EXE-6 21731 | -2/Protoforge | Initialized slip node 21740 | -2/Protoforge | Destroyed EXE-6 21748 | -2/Protoforge | Destroyed AP7-3 21755 | -2/Protoforge | Optimus greeted in Protoforge 21778 | -2/Protoforge | Found Prototype Ballistic Gun 21778 | -2/Protoforge | Identified Cep. XC Strikerail 21781 | -2/Protoforge | Lost 4 allies 21781 | -2/Protoforge | Found Prototype Processor 21781 | -2/Protoforge | Identified Exp. Core Analyzer 21784 | -2/Protoforge | Lost 5 parts (1p1n3u) 21849 | -2/Protoforge | Spotted EXE-6 21874 | -2/Protoforge | Destroyed EXE-6 21888 | -2/Protoforge | Lost 4 parts (3n1u) 21890 | -2/Protoforge | Found Cep. XC Strikerail 21908 | -2/Protoforge | Found Cep. XC Strikerail 21977 | -2/Protoforge | UFD reported confirmed Drillbomb installation 21991 | -2/Protoforge | Spotted Hotshot 21993 | -2/Protoforge | Spotted Hotshot 21996 | -2/Protoforge | Spotted Hotshot 22053 | -2/Protoforge | Spotted Striker 22056 | -2/Protoforge | Spotted Immortal 22063 | -2/Protoforge | Spotted Immortal 22064 | -2/Protoforge | Spotted Immortal 22071 | -2/Protoforge | Spotted Executioner 22074 | -2/Protoforge | Spotted Executioner 22075 | -2/Protoforge | Spotted Striker 22076 | -2/Protoforge | Spotted Executioner 22094 | -2/Protoforge | Destroyed Executioner 22096 | -2/Protoforge | Destroyed Executioner 22108 | -2/Protoforge | Destroyed Executioner 22119 | -2/Protoforge | Spotted Striker 22121 | -2/Protoforge | Spotted Striker 22129 | -2/Protoforge | Spotted Striker 22138 | -2/Protoforge | Destroyed 14 combat bots 22144 | -2/Protoforge | Destroyed Striker 22158 | -2/Protoforge | Lost 8 allies 22168 | -2/Protoforge | Forge Plexus network access discovered 22182 | -2/Protoforge | Spotted Decapitator 22183 | -2/Protoforge | Spotted Decapitator 22183 | -2/Protoforge | Spotted Decapitator 22183 | -2/Protoforge | Spotted Decapitator 22183 | -2/Protoforge | Spotted Decapitator 22186 | -2/Protoforge | Destroyed Decapitator 22186 | -2/Protoforge | Destroyed Decapitator 22186 | -2/Protoforge | Destroyed Decapitator 22186 | -2/Protoforge | Destroyed Decapitator 22191 | -2/Protoforge | Destroyed Decapitator 22303 | -2/Protoforge | Spotted Executioner 22304 | -2/Protoforge | Spotted Executioner 22310 | -2/Protoforge | Spotted Striker 22312 | -2/Protoforge | Spotted Striker 22334 | -2/Protoforge | Destroyed Striker 22348 | -2/Protoforge | Destroyed Executioner 22356 | -2/Protoforge | Spotted Executioner 22365 | -2/Protoforge | Build established: Scavenger-Gunner 22370 | -2/Protoforge | Spotted Executioner 22420 | -2/Protoforge | Spotted Executioner 22425 | -2/Protoforge | Spotted Executioner 22432 | -2/Protoforge | Destroyed Executioner 22482 | -2/Protoforge | Lost 3 allies 22502 | -2/Protoforge | Spotted Executioner 22504 | -2/Protoforge | Spotted Striker 22513 | -2/Protoforge | UFD reported confirmed Drillbomb installation 22527 | -2/Protoforge | Core integrity fell below 50% 22529 | -2/Protoforge | Destroyed Striker 22536 | -2/Protoforge | Destroyed Executioner 22540 | -2/Protoforge | Spotted Executioner 22545 | -2/Protoforge | Spotted Striker 22559 | -2/Protoforge | Destroyed Striker 22598 | -2/Protoforge | Destroyed Executioner 22621 | -2/Protoforge | Spotted Executioner 22626 | -2/Protoforge | Found Adv. Kinecellerator 22627 | -2/Protoforge | Spotted Striker 22628 | -2/Protoforge | Destroyed 13 combat bots 22661 | -2/Protoforge | Destroyed Striker 22664 | -2/Protoforge | Destroyed Executioner 22687 | -2/Protoforge | Spotted Striker 22689 | -2/Protoforge | Destroyed 7 combat bots 22695 | -2/Protoforge | Spotted Striker 22728 | -2/Protoforge | Destroyed Striker 22747 | -2/Protoforge | Destroyed Striker 22753 | -2/Protoforge | Lost 4 allies 22823 | -2/Protoforge | Build established: Scavenger-Mutant 22831 | -2/Protoforge | Spotted Decapitator 22832 | -2/Protoforge | Spotted Decapitator 22836 | -2/Protoforge | Destroyed Decapitator 22836 | -2/Protoforge | Spotted Executioner 22837 | -2/Protoforge | Spotted Executioner 22840 | -2/Protoforge | Destroyed Decapitator 22863 | -2/Protoforge | Spotted V391-r 22867 | -2/Protoforge | Spotted V628-s 22867 | -2/Protoforge | Spotted V094-z 22882 | -2/Protoforge | Lost 4 parts (1p3u) 22898 | -2/Protoforge | Spotted Decapitator 22898 | -2/Protoforge | Spotted Decapitator 22899 | -2/Protoforge | Core integrity fell below 20% 22905 | -2/Protoforge | Spotted Immortal 22935 | -2/Protoforge | Found Cep. Gyrokinetic System 22957 | -2/Protoforge | Additional patrols dispatched to research labs 22963 | -2/Protoforge | Found Transdimensional Reconstructor 22966 | -2/Protoforge | Found Cep. Navigation Harness 22967 | -2/Protoforge | Warped through subspace 22968 | -2/Protoforge | Warped through subspace 22983 | -2/Protoforge | Spotted Striker 22983 | -2/Protoforge | Spotted Executioner 23086 | -2/Protoforge | Lost 5 allies 23097 | -2/Protoforge | Spotted Immortal 23097 | -2/Protoforge | Spotted Immortal 23097 | -2/Protoforge | Destroyed by Superfortress with Concept Helical Railcannon Last Messages --------------- Penetrator. 23062_ N-04 Retriever collects Lgt. Humpback. 23062_ N-04 Retriever collects Mak. Coolant Network. 23062_ N-04 Retriever collects Ovr. Medium Treads. 23062_ N-04 Retriever collects Impulse Thruster Array. 23064_ Acquired Hellfire Missile Launcher. 23065_ Dropped Hellfire Missile Launcher. 23068_ Dropped Imp. Quantum Reactor. 23069_ Acquired Lgt. Quantum Reactor. 23070_ Acquired 67 matter. 23071_ Drawn through space via semi-controlled quantum shift. 23072_ System corrupted: Heat flow error (+102). 23091_ System corrupted: Heat flow error (+295). 23097_ Drawn through space via semi-controlled quantum shift. 23097_ Penetrated by Railslug. Map ----- +----------------------------------------------------+ | ????????????# ??????????????????# #????????????? | | ????????????# ?????????????????# #????????????? | | ????????????# ################# #????????????? | | ????????????# #????????????? | | ????????????# #????????????? | | ????????????# #????????????? | | ????????????######## ########????????????? | | ???????????????????# #???????????????????? | | ???????????????????# #???????????????????? | | ???????????????????# #???????????????????? | | ???????????????????# #???????????????????? | | ???????????????????## ##???????????????????? | | ???????????#########; #????????????????????? | | ???????????########## ######???????????????? | | ???????????##"""""""" """""""#????????????? | | #?########?## "" """" #????????????? | | ?####### ### " "" #???######???# | | ###"""" # " "" #???#""""#???# | | !! # cll #####!!!!##### | | % | | FFF | | FFF | | FFF | | | | | | # % @ ##### #"### | | #"""" ####"""""""""""""""""""""""#???#"" ###?# | | #########?##"""""""""""""""""""""""#???######???# | | #########?##"""""""""""""""""""""???????????????? | | #?? #????####################??????????????????? | | ##?# #???###########????????????????????????###? | | #### ##????????????????????????????????????# #? | | ## #####???????????????????????????????# #? | | % """""##""## #???################################ | | % " ###??# % | | " % " #### "" "" " | | %%%%% % " ## """" "% "" "" % | | %%% % % " # ## "" " "" *"%%"% "" | | % %%%%% " ""# #[! """ *= =%"=" " "" | | "%%""%" "" *"# ! " %% ! " % | | & % % % % " % !! % = """ | | % % % "%"% !!! ![*!% " | | % % "%%%%%% %= % %% | | """##"#"#""""" %"#%%%% %[% % "" | | "#### ###""###"#=#&%%% % %%% % """% ! | | ######## ##% % % % % % % % | | ######## """##%% % %%% % % % """% | | # """## % % % % %% % " % """" | | + """"# %% % % % % % " % | | ! # """## " "%"" % " | +----------------------------------------------------+ Best States ------------- Heat Dissipation 125 Coolant Potential 100 Energy Generation 67 Energy Capacity 1200 Matter Stores 300 Matter Capacity 300 Sight Range 24 Robot Scan Range 16 Terrain Scan Range 20 Terrain Scan Density 110 ECM Strength 1 Cloak Strength 4 Power Amplification 30 Additional Mass Support 16 Base Temperature (-) 200 EM Shielding 3 Armor Coverage 900 Resistance: EM 25 Core Shielding 30 Propulsion Shielding 90 Weapon Shielding 90 Evasion (%) 71 Core Analysis 8 Recoil Reduction 2 Energy Filtering 30 Particle Charging 40 Kinecelleration 50 Offensive Hacking 24 Defensive Hacking 20 Authchip Count 1 Trap Extractor Capacity 8 Item Schematics ----------------- Huge Storage Unit | -9/Recycling | Hacked Gravmag Array | -6/Factory | Hacked Hyp. Gauss Cannon | -6/Factory | Hacked Cld. Airjet | -6/Factory | Scanalyzed Trap Extractor | -6/Factory | Scanalyzed Exp. Weapon Shielding | -6/Factory | Scanalyzed Antigrav Array | -5/Factory | Hacked Cmb. Linear Gravjet | -4/Factory | Scanalyzed Com. Mass Driver | -3/Testing | Archive Prc. Energy Filter | -3/Testing | Archive Exp. Thermal Shield | -3/Testing | Archive Enh. Fission Core | -3/Testing | Archive Robot Schematics ------------------ G-34 Mercenary | -9/Recycling | Hacked Fabricated ------------ Cmb. Linear Gravjet | x2 | -4/Factory | Authchip Repaired ---------- Cld. Airjet | 61% | -6/Factory | Broken Alien Tech Used ----------------- Subatomic Replicator Dimensional Node Initializer High-powered Transdimensional Reconstructor Transdimensional Reconstructor Achievements -------------- None Challenges ------------ None Game ------ Seed PulseTimingCanceller Manual? 0 Play Time 06:12:29 Cumulative 543.8 hours Start 2025.08.09 @ 22:26:49 End 2025.08.10 @ 18:03:36 Sessions 9 Manual Loads 0 Difficulty Rogue Special Mode None Game No. 117 Rogue 117 Adventurer 0 Explorer 0 Win Type - Total 39 Types 18/2/8/2/1/0/3/3/1/1 Lore% 93 Gallery% 81 Achievement% 83 Wizard Run 0 Options --------- Layout 1 ASCII 0 Keyboard 0 Movement Mouse Keybinds 0 Fullscreen 1 Font 24/Smallcaps Map View 50x35 Zoom Use 0% Tactical HUD 1 Map Filters NONE Filters NONE Steam 1 RUN: 649629d3-ea27-4ead-b1d5-fbfc9e491693